{"text_format":"1","workbook":"xlsx","n_sheets":3,"sheets":["Poteau","Basededonnée","Tableau de bord"],"not_rendered":{"charts":0,"images":2,"macros":1,"external_links":0,"defined_names":7,"comments":0,"pivot_tables":0},"unopened":[],"bounds":{"document_bytes":16777216,"sheet_cells":100000,"rows_first":2000,"rows_last":500,"rows_between":2000,"halvings":0,"cell_chars":16384,"cell_head_chars":4096},"cells_cut":0,"cells_raw":0,"read":"whole","date_system":"1900"}

{"sheet":"Poteau","index":0,"n_rows":20,"n_cols":49,"rows_kept":20,"cut":false,"hidden":false,"merged":[]}
[]
["Truc","A","B","E","F","G","H","I","J","K","L","M","N","O","P","Q","R","S","T","U","V","W","X","Y","Z","AA","AB","AC","AD","AE","AF","AG","AH","AI","AJ","AK","AL","AM","AN","AO","AP","AQ","AR","AS","AT","AU","AV","AW","AX"]
["Oui",310,"2017-01-16",{"$f":"VLOOKUP(tblPoteau[[#This Row],[A]],Tableau_basededonnée[],5,0)","v":900},{"$f":"VLOOKUP(tblPoteau[[#This Row],[A]],Tableau_basededonnée[],6,0)","v":"FLEURS"},{"$f":"VLOOKUP(tblPoteau[[#This Row],[A]],Tableau_basededonnée[],7,0)","v":"CERISE"},{"$f":"VLOOKUP(tblPoteau[[#This Row],[A]],Tableau_basededonnée[],8,0)","v":"LAVANDE"},{"$f":"VLOOKUP(tblPoteau[[#This Row],[A]],Tableau_basededonnée[],9,0)","v":1},{"$f":"VLOOKUP(tblPoteau[[#This Row],[A]],Tableau_basededonnée[],10,0)","v":10},"Classique (javel)",{"$f":"VLOOKUP(tblPoteau[[#This Row],[A]],Tableau_basededonnée[],12,0)","v":4},{"$f":"VLOOKUP(tblPoteau[[#This Row],[A]],Tableau_basededonnée[],13,0)","v":"POTEAU"},{"$f":"VLOOKUP(tblPoteau[[#This Row],[A]],Tableau_basededonnée[],14,0)","v":"FIL"},{"$f":"VLOOKUP(tblPoteau[[#This Row],[A]],Tableau_basededonnée[],15,0)","v":"Bonne(s) "},{"$f":"VLOOKUP(tblPoteau[[#This Row],[A]],Tableau_basededonnée[],16,0)","v":"Bonne"},{"$f":"VLOOKUP(tblPoteau[[#This Row],[A]],Tableau_basededonnée[],17,0)","v":"Moyenne(s)"},{"$f":"VLOOKUP(tblPoteau[[#This Row],[A]],Tableau_basededonnée[],18,0)","v":"Bon"},{"$f":"VLOOKUP(tblPoteau[[#This Row],[A]],Tableau_basededonnée[],19,0)","v":"Moyenne(s)"},{"$f":"VLOOKUP(tblPoteau[[#This Row],[A]],Tableau_basededonnée[],20,0)","v":"Bon"},{"$f":"VLOOKUP(tblPoteau[[#This Row],[A]],Tableau_basededonnée[],21,0)","v":"Bonne(s)"},"Moyen",{"$f":"VLOOKUP(tblPoteau[[#This Row],[A]],Tableau_basededonnée[],23,0)","v":"Bonne(s) "},{"$f":"VLOOKUP(tblPoteau[[#This Row],[A]],Tableau_basededonnée[],24,0)","v":"Moyen"},{"$f":"VLOOKUP(tblPoteau[[#This Row],[A]],Tableau_basededonnée[],25,0)","v":"Bonne(s)"},{"$f":"VLOOKUP(tblPoteau[[#This Row],[A]],Tableau_basededonnée[],26,0)","v":"Bonne(s)"},{"$f":"VLOOKUP(tblPoteau[[#This Row],[A]],Tableau_basededonnée[],27,0)","v":"Acier / Pvc"},{"$f":"VLOOKUP(tblPoteau[[#This Row],[A]],Tableau_basededonnée[],28,0)","v":"Moyenne(s)"},{"$f":"VLOOKUP(tblPoteau[[#This Row],[A]],Tableau_basededonnée[],29,0)","v":"Moyenne(s)"},{"$f":"VLOOKUP(tblPoteau[[#This Row],[A]],Tableau_basededonnée[],30,0)","v":"Bon"},{"$f":"VLOOKUP(tblPoteau[[#This Row],[A]],Tableau_basededonnée[],31,0)","v":"Oui"},{"$f":"VLOOKUP(tblPoteau[[#This Row],[A]],Tableau_basededonnée[],32,0)","v":"BOBINE"},{"$f":"VLOOKUP(tblPoteau[[#This Row],[A]],Tableau_basededonnée[],33,0)","v":12},{"$f":"VLOOKUP(tblPoteau[[#This Row],[A]],Tableau_basededonnée[],34,0)","v":21},{"$f":"VLOOKUP(tblPoteau[[#This Row],[A]],Tableau_basededonnée[],35,0)","v":47},{"$f":"VLOOKUP(tblPoteau[[#This Row],[A]],Tableau_basededonnée[],36,0)","v":"Non"},{"$f":"VLOOKUP(tblPoteau[[#This Row],[A]],Tableau_basededonnée[],37,0)","v":"SANS"},{"$f":"VLOOKUP(tblPoteau[[#This Row],[A]],Tableau_basededonnée[],38,0)","v":"Moyenne(s)"},{"$f":"VLOOKUP(tblPoteau[[#This Row],[A]],Tableau_basededonnée[],39,0)","v":"Mauvaise(s)"},{"$f":"VLOOKUP(tblPoteau[[#This Row],[A]],Tableau_basededonnée[],40,0)","v":"Oui"},{"$f":"VLOOKUP(tblPoteau[[#This Row],[A]],Tableau_basededonnée[],41,0)","v":"Oui"},{"$f":"VLOOKUP(tblPoteau[[#This Row],[A]],Tableau_basededonnée[],42,0)","v":"Sans objet"},{"$f":"VLOOKUP(tblPoteau[[#This Row],[A]],Tableau_basededonnée[],43,0)","v":"Sans objet"},{"$f":"VLOOKUP(tblPoteau[[#This Row],[A]],Tableau_basededonnée[],44,0)","v":"Non"},{"$f":"VLOOKUP(tblPoteau[[#This Row],[A]],Tableau_basededonnée[],45,0)","v":"Non"},{"$f":"VLOOKUP(tblPoteau[[#This Row],[A]],Tableau_basededonnée[],46,0)","v":"Bon"},{"$f":"VLOOKUP(tblPoteau[[#This Row],[A]],Tableau_basededonnée[],47,0)","v":"Oui (NS)"},{"$f":"VLOOKUP(tblPoteau[[#This Row],[A]],Tableau_basededonnée[],48,0)","v":"RIEN"},{"$f":"VLOOKUP(tblPoteau[[#This Row],[A]],Tableau_basededonnée[],49,0)","v":"OUI"}]
["Oui",320,"2015-01-21",{"$f":"VLOOKUP(tblPoteau[[#This Row],[A]],Tableau_basededonnée[],5,0)","v":900},{"$f":"VLOOKUP(tblPoteau[[#This Row],[A]],Tableau_basededonnée[],6,0)","v":"ARBRE"},{"$f":"VLOOKUP(tblPoteau[[#This Row],[A]],Tableau_basededonnée[],7,0)","v":"PECHE"},{"$f":"VLOOKUP(tblPoteau[[#This Row],[A]],Tableau_basededonnée[],8,0)","v":"MUGUET"},{"$f":"VLOOKUP(tblPoteau[[#This Row],[A]],Tableau_basededonnée[],9,0)","v":1},{"$f":"VLOOKUP(tblPoteau[[#This Row],[A]],Tableau_basededonnée[],10,0)","v":100},"Classique (javel)",{"$f":"VLOOKUP(tblPoteau[[#This Row],[A]],Tableau_basededonnée[],12,0)","v":4},{"$f":"VLOOKUP(tblPoteau[[#This Row],[A]],Tableau_basededonnée[],13,0)","v":"POTEAU"},{"$f":"VLOOKUP(tblPoteau[[#This Row],[A]],Tableau_basededonnée[],14,0)","v":"FIL"},{"$f":"VLOOKUP(tblPoteau[[#This Row],[A]],Tableau_basededonnée[],15,0)","v":"Moyenne(s)"},{"$f":"VLOOKUP(tblPoteau[[#This Row],[A]],Tableau_basededonnée[],16,0)","v":"Sans"},{"$f":"VLOOKUP(tblPoteau[[#This Row],[A]],Tableau_basededonnée[],17,0)","v":"Moyenne(s)"},{"$f":"VLOOKUP(tblPoteau[[#This Row],[A]],Tableau_basededonnée[],18,0)","v":"Bon"},{"$f":"VLOOKUP(tblPoteau[[#This Row],[A]],Tableau_basededonnée[],19,0)","v":"Bonne(s) "},{"$f":"VLOOKUP(tblPoteau[[#This Row],[A]],Tableau_basededonnée[],20,0)","v":"Moyen"},{"$f":"VLOOKUP(tblPoteau[[#This Row],[A]],Tableau_basededonnée[],21,0)","v":"Bonne(s)"},"Moyen",{"$f":"VLOOKUP(tblPoteau[[#This Row],[A]],Tableau_basededonnée[],23,0)","v":"Bonne(s)"},{"$f":"VLOOKUP(tblPoteau[[#This Row],[A]],Tableau_basededonnée[],24,0)","v":"Bon"},{"$f":"VLOOKUP(tblPoteau[[#This Row],[A]],Tableau_basededonnée[],25,0)","v":"Bonne(s)"},{"$f":"VLOOKUP(tblPoteau[[#This Row],[A]],Tableau_basededonnée[],26,0)","v":"Bonne(s)"},{"$f":"VLOOKUP(tblPoteau[[#This Row],[A]],Tableau_basededonnée[],27,0)","v":"Acier"},{"$f":"VLOOKUP(tblPoteau[[#This Row],[A]],Tableau_basededonnée[],28,0)","v":"Moyenne(s)"},{"$f":"VLOOKUP(tblPoteau[[#This Row],[A]],Tableau_basededonnée[],29,0)","v":"Moyenne(s)"},{"$f":"VLOOKUP(tblPoteau[[#This Row],[A]],Tableau_basededonnée[],30,0)","v":"Bon"},{"$f":"VLOOKUP(tblPoteau[[#This Row],[A]],Tableau_basededonnée[],31,0)","v":"Oui"},{"$f":"VLOOKUP(tblPoteau[[#This Row],[A]],Tableau_basededonnée[],32,0)","v":"En état"},{"$f":"VLOOKUP(tblPoteau[[#This Row],[A]],Tableau_basededonnée[],33,0)","v":16},{"$f":"VLOOKUP(tblPoteau[[#This Row],[A]],Tableau_basededonnée[],34,0)","v":25},{"$f":"VLOOKUP(tblPoteau[[#This Row],[A]],Tableau_basededonnée[],35,0)","v":55},{"$f":"VLOOKUP(tblPoteau[[#This Row],[A]],Tableau_basededonnée[],36,0)","v":"Non"},{"$f":"VLOOKUP(tblPoteau[[#This Row],[A]],Tableau_basededonnée[],37,0)","v":"SANS"},{"$f":"VLOOKUP(tblPoteau[[#This Row],[A]],Tableau_basededonnée[],38,0)","v":"Moyenne(s)"},{"$f":"VLOOKUP(tblPoteau[[#This Row],[A]],Tableau_basededonnée[],39,0)","v":"Mauvaise(s)"},{"$f":"VLOOKUP(tblPoteau[[#This Row],[A]],Tableau_basededonnée[],40,0)","v":"Oui"},{"$f":"VLOOKUP(tblPoteau[[#This Row],[A]],Tableau_basededonnée[],41,0)","v":"Oui"},{"$f":"VLOOKUP(tblPoteau[[#This Row],[A]],Tableau_basededonnée[],42,0)","v":"Oui"},{"$f":"VLOOKUP(tblPoteau[[#This Row],[A]],Tableau_basededonnée[],43,0)","v":"Oui"},{"$f":"VLOOKUP(tblPoteau[[#This Row],[A]],Tableau_basededonnée[],44,0)","v":"Non"},{"$f":"VLOOKUP(tblPoteau[[#This Row],[A]],Tableau_basededonnée[],45,0)","v":"Non"},{"$f":"VLOOKUP(tblPoteau[[#This Row],[A]],Tableau_basededonnée[],46,0)","v":"Bon"},{"$f":"VLOOKUP(tblPoteau[[#This Row],[A]],Tableau_basededonnée[],47,0)","v":"Non"},{"$f":"VLOOKUP(tblPoteau[[#This Row],[A]],Tableau_basededonnée[],48,0)","v":"RIEN"},{"$f":"VLOOKUP(tblPoteau[[#This Row],[A]],Tableau_basededonnée[],49,0)","v":"SANS"},""]
["Oui",312,"2017-02-13",{"$f":"VLOOKUP(tblPoteau[[#This Row],[A]],Tableau_basededonnée[],5,0)","v":900},{"$f":"VLOOKUP(tblPoteau[[#This Row],[A]],Tableau_basededonnée[],6,0)","v":"FLEURS"},{"$f":"VLOOKUP(tblPoteau[[#This Row],[A]],Tableau_basededonnée[],7,0)","v":"POMME"},{"$f":"VLOOKUP(tblPoteau[[#This Row],[A]],Tableau_basededonnée[],8,0)","v":"PAQUERETTE"},{"$f":"VLOOKUP(tblPoteau[[#This Row],[A]],Tableau_basededonnée[],9,0)","v":1},{"$f":"VLOOKUP(tblPoteau[[#This Row],[A]],Tableau_basededonnée[],10,0)","v":150},"Classique (javel)",{"$f":"VLOOKUP(tblPoteau[[#This Row],[A]],Tableau_basededonnée[],12,0)","v":7},{"$f":"VLOOKUP(tblPoteau[[#This Row],[A]],Tableau_basededonnée[],13,0)","v":"POTEAU"},{"$f":"VLOOKUP(tblPoteau[[#This Row],[A]],Tableau_basededonnée[],14,0)","v":"FIL"},{"$f":"VLOOKUP(tblPoteau[[#This Row],[A]],Tableau_basededonnée[],15,0)","v":"Moyenne(s)"},{"$f":"VLOOKUP(tblPoteau[[#This Row],[A]],Tableau_basededonnée[],16,0)","v":"Sans"},{"$f":"VLOOKUP(tblPoteau[[#This Row],[A]],Tableau_basededonnée[],17,0)","v":"Moyenne(s)"},{"$f":"VLOOKUP(tblPoteau[[#This Row],[A]],Tableau_basededonnée[],18,0)","v":"Moyen"},{"$f":"VLOOKUP(tblPoteau[[#This Row],[A]],Tableau_basededonnée[],19,0)","v":"Bonne(s) "},{"$f":"VLOOKUP(tblPoteau[[#This Row],[A]],Tableau_basededonnée[],20,0)","v":"Moyen"},{"$f":"VLOOKUP(tblPoteau[[#This Row],[A]],Tableau_basededonnée[],21,0)","v":"Bonne(s)"},"Moyen",{"$f":"VLOOKUP(tblPoteau[[#This Row],[A]],Tableau_basededonnée[],23,0)","v":"Bonne(s)"},{"$f":"VLOOKUP(tblPoteau[[#This Row],[A]],Tableau_basededonnée[],24,0)","v":"Moyen"},{"$f":"VLOOKUP(tblPoteau[[#This Row],[A]],Tableau_basededonnée[],25,0)","v":"Bonne(s)"},{"$f":"VLOOKUP(tblPoteau[[#This Row],[A]],Tableau_basededonnée[],26,0)","v":"Bonne(s)"},{"$f":"VLOOKUP(tblPoteau[[#This Row],[A]],Tableau_basededonnée[],27,0)","v":"Acier / Inox"},{"$f":"VLOOKUP(tblPoteau[[#This Row],[A]],Tableau_basededonnée[],28,0)","v":"Bonne(s)"},{"$f":"VLOOKUP(tblPoteau[[#This Row],[A]],Tableau_basededonnée[],29,0)","v":"Bonne(s) "},{"$f":"VLOOKUP(tblPoteau[[#This Row],[A]],Tableau_basededonnée[],30,0)","v":"Bon"},{"$f":"VLOOKUP(tblPoteau[[#This Row],[A]],Tableau_basededonnée[],31,0)","v":"Oui"},{"$f":"VLOOKUP(tblPoteau[[#This Row],[A]],Tableau_basededonnée[],32,0)","v":"En état"},{"$f":"VLOOKUP(tblPoteau[[#This Row],[A]],Tableau_basededonnée[],33,0)","v":14},{"$f":"VLOOKUP(tblPoteau[[#This Row],[A]],Tableau_basededonnée[],34,0)","v":23},{"$f":"VLOOKUP(tblPoteau[[#This Row],[A]],Tableau_basededonnée[],35,0)","v":55},{"$f":"VLOOKUP(tblPoteau[[#This Row],[A]],Tableau_basededonnée[],36,0)","v":"Non"},{"$f":"VLOOKUP(tblPoteau[[#This Row],[A]],Tableau_basededonnée[],37,0)","v":"SANS"},{"$f":"VLOOKUP(tblPoteau[[#This Row],[A]],Tableau_basededonnée[],38,0)","v":"Moyenne(s)"},{"$f":"VLOOKUP(tblPoteau[[#This Row],[A]],Tableau_basededonnée[],39,0)","v":"Mauvaise(s)"},{"$f":"VLOOKUP(tblPoteau[[#This Row],[A]],Tableau_basededonnée[],40,0)","v":"Oui"},{"$f":"VLOOKUP(tblPoteau[[#This Row],[A]],Tableau_basededonnée[],41,0)","v":"Oui"},{"$f":"VLOOKUP(tblPoteau[[#This Row],[A]],Tableau_basededonnée[],42,0)","v":"Oui"},{"$f":"VLOOKUP(tblPoteau[[#This Row],[A]],Tableau_basededonnée[],43,0)","v":"Oui"},{"$f":"VLOOKUP(tblPoteau[[#This Row],[A]],Tableau_basededonnée[],44,0)","v":"Oui"},{"$f":"VLOOKUP(tblPoteau[[#This Row],[A]],Tableau_basededonnée[],45,0)","v":"Non"},{"$f":"VLOOKUP(tblPoteau[[#This Row],[A]],Tableau_basededonnée[],46,0)","v":"Mauvais "},{"$f":"VLOOKUP(tblPoteau[[#This Row],[A]],Tableau_basededonnée[],47,0)","v":"Non"},{"$f":"VLOOKUP(tblPoteau[[#This Row],[A]],Tableau_basededonnée[],48,0)","v":"RIEN"},{"$f":"VLOOKUP(tblPoteau[[#This Row],[A]],Tableau_basededonnée[],49,0)","v":"OUI"},""]
["Oui",311,"2018-01-15",{"$f":"VLOOKUP(tblPoteau[[#This Row],[A]],Tableau_basededonnée[],5,0)","v":900},{"$f":"VLOOKUP(tblPoteau[[#This Row],[A]],Tableau_basededonnée[],6,0)","v":"FLEURS"},{"$f":"VLOOKUP(tblPoteau[[#This Row],[A]],Tableau_basededonnée[],7,0)","v":"POIRE"},{"$f":"VLOOKUP(tblPoteau[[#This Row],[A]],Tableau_basededonnée[],8,0)","v":"ROSE"},{"$f":"VLOOKUP(tblPoteau[[#This Row],[A]],Tableau_basededonnée[],9,0)","v":1},{"$f":"VLOOKUP(tblPoteau[[#This Row],[A]],Tableau_basededonnée[],10,0)","v":50},"Chimique",{"$f":"VLOOKUP(tblPoteau[[#This Row],[A]],Tableau_basededonnée[],12,0)","v":6},{"$f":"VLOOKUP(tblPoteau[[#This Row],[A]],Tableau_basededonnée[],13,0)","v":"POTEAU"},{"$f":"VLOOKUP(tblPoteau[[#This Row],[A]],Tableau_basededonnée[],14,0)","v":"FIL"},{"$f":"VLOOKUP(tblPoteau[[#This Row],[A]],Tableau_basededonnée[],15,0)","v":"Bonne(s)"},{"$f":"VLOOKUP(tblPoteau[[#This Row],[A]],Tableau_basededonnée[],16,0)","v":"Bonne"},{"$f":"VLOOKUP(tblPoteau[[#This Row],[A]],Tableau_basededonnée[],17,0)","v":"Moyenne(s)"},{"$f":"VLOOKUP(tblPoteau[[#This Row],[A]],Tableau_basededonnée[],18,0)","v":"Bon"},{"$f":"VLOOKUP(tblPoteau[[#This Row],[A]],Tableau_basededonnée[],19,0)","v":"Bonne(s) "},{"$f":"VLOOKUP(tblPoteau[[#This Row],[A]],Tableau_basededonnée[],20,0)","v":"Moyen"},{"$f":"VLOOKUP(tblPoteau[[#This Row],[A]],Tableau_basededonnée[],21,0)","v":"Bonne(s)"},"Moyen",{"$f":"VLOOKUP(tblPoteau[[#This Row],[A]],Tableau_basededonnée[],23,0)","v":"Moyenne(s)"},{"$f":"VLOOKUP(tblPoteau[[#This Row],[A]],Tableau_basededonnée[],24,0)","v":"Bon"},{"$f":"VLOOKUP(tblPoteau[[#This Row],[A]],Tableau_basededonnée[],25,0)","v":"Bonne(s)"},{"$f":"VLOOKUP(tblPoteau[[#This Row],[A]],Tableau_basededonnée[],26,0)","v":"Bonne(s)"},{"$f":"VLOOKUP(tblPoteau[[#This Row],[A]],Tableau_basededonnée[],27,0)","v":"Pvc"},{"$f":"VLOOKUP(tblPoteau[[#This Row],[A]],Tableau_basededonnée[],28,0)","v":"Bonne(s)"},{"$f":"VLOOKUP(tblPoteau[[#This Row],[A]],Tableau_basededonnée[],29,0)","v":"Bonne(s) "},{"$f":"VLOOKUP(tblPoteau[[#This Row],[A]],Tableau_basededonnée[],30,0)","v":"Bon"},{"$f":"VLOOKUP(tblPoteau[[#This Row],[A]],Tableau_basededonnée[],31,0)","v":"Oui"},{"$f":"VLOOKUP(tblPoteau[[#This Row],[A]],Tableau_basededonnée[],32,0)","v":"En état"},{"$f":"VLOOKUP(tblPoteau[[#This Row],[A]],Tableau_basededonnée[],33,0)","v":13},{"$f":"VLOOKUP(tblPoteau[[#This Row],[A]],Tableau_basededonnée[],34,0)","v":22},{"$f":"VLOOKUP(tblPoteau[[#This Row],[A]],Tableau_basededonnée[],35,0)","v":"Oui"},{"$f":"VLOOKUP(tblPoteau[[#This Row],[A]],Tableau_basededonnée[],36,0)","v":"Non"},{"$f":"VLOOKUP(tblPoteau[[#This Row],[A]],Tableau_basededonnée[],37,0)","v":"SANS"},{"$f":"VLOOKUP(tblPoteau[[#This Row],[A]],Tableau_basededonnée[],38,0)","v":"Moyenne(s)"},{"$f":"VLOOKUP(tblPoteau[[#This Row],[A]],Tableau_basededonnée[],39,0)","v":"Mauvaise(s)"},{"$f":"VLOOKUP(tblPoteau[[#This Row],[A]],Tableau_basededonnée[],40,0)","v":"Oui"},{"$f":"VLOOKUP(tblPoteau[[#This Row],[A]],Tableau_basededonnée[],41,0)","v":"Oui"},{"$f":"VLOOKUP(tblPoteau[[#This Row],[A]],Tableau_basededonnée[],42,0)","v":"Oui"},{"$f":"VLOOKUP(tblPoteau[[#This Row],[A]],Tableau_basededonnée[],43,0)","v":"Oui"},{"$f":"VLOOKUP(tblPoteau[[#This Row],[A]],Tableau_basededonnée[],44,0)","v":"Non"},{"$f":"VLOOKUP(tblPoteau[[#This Row],[A]],Tableau_basededonnée[],45,0)","v":"Non"},{"$f":"VLOOKUP(tblPoteau[[#This Row],[A]],Tableau_basededonnée[],46,0)","v":"Bon"},{"$f":"VLOOKUP(tblPoteau[[#This Row],[A]],Tableau_basededonnée[],47,0)","v":"Non"},{"$f":"VLOOKUP(tblPoteau[[#This Row],[A]],Tableau_basededonnée[],48,0)","v":"RIEN"},{"$f":"VLOOKUP(tblPoteau[[#This Row],[A]],Tableau_basededonnée[],49,0)","v":"OUI"},""]
["Oui",312,"2016-02-03",{"$f":"VLOOKUP(tblPoteau[[#This Row],[A]],Tableau_basededonnée[],5,0)","v":900},{"$f":"VLOOKUP(tblPoteau[[#This Row],[A]],Tableau_basededonnée[],6,0)","v":"FLEURS"},{"$f":"VLOOKUP(tblPoteau[[#This Row],[A]],Tableau_basededonnée[],7,0)","v":"POMME"},{"$f":"VLOOKUP(tblPoteau[[#This Row],[A]],Tableau_basededonnée[],8,0)","v":"PAQUERETTE"},{"$f":"VLOOKUP(tblPoteau[[#This Row],[A]],Tableau_basededonnée[],9,0)","v":1},{"$f":"VLOOKUP(tblPoteau[[#This Row],[A]],Tableau_basededonnée[],10,0)","v":150},"Classique (javel)",{"$f":"VLOOKUP(tblPoteau[[#This Row],[A]],Tableau_basededonnée[],12,0)","v":7},{"$f":"VLOOKUP(tblPoteau[[#This Row],[A]],Tableau_basededonnée[],13,0)","v":"POTEAU"},{"$f":"VLOOKUP(tblPoteau[[#This Row],[A]],Tableau_basededonnée[],14,0)","v":"FIL"},{"$f":"VLOOKUP(tblPoteau[[#This Row],[A]],Tableau_basededonnée[],15,0)","v":"Moyenne(s)"},{"$f":"VLOOKUP(tblPoteau[[#This Row],[A]],Tableau_basededonnée[],16,0)","v":"Sans"},{"$f":"VLOOKUP(tblPoteau[[#This Row],[A]],Tableau_basededonnée[],17,0)","v":"Moyenne(s)"},{"$f":"VLOOKUP(tblPoteau[[#This Row],[A]],Tableau_basededonnée[],18,0)","v":"Moyen"},{"$f":"VLOOKUP(tblPoteau[[#This Row],[A]],Tableau_basededonnée[],19,0)","v":"Bonne(s) "},{"$f":"VLOOKUP(tblPoteau[[#This Row],[A]],Tableau_basededonnée[],20,0)","v":"Moyen"},{"$f":"VLOOKUP(tblPoteau[[#This Row],[A]],Tableau_basededonnée[],21,0)","v":"Bonne(s)"},"Moyen",{"$f":"VLOOKUP(tblPoteau[[#This Row],[A]],Tableau_basededonnée[],23,0)","v":"Bonne(s)"},{"$f":"VLOOKUP(tblPoteau[[#This Row],[A]],Tableau_basededonnée[],24,0)","v":"Moyen"},{"$f":"VLOOKUP(tblPoteau[[#This Row],[A]],Tableau_basededonnée[],25,0)","v":"Bonne(s)"},{"$f":"VLOOKUP(tblPoteau[[#This Row],[A]],Tableau_basededonnée[],26,0)","v":"Bonne(s)"},{"$f":"VLOOKUP(tblPoteau[[#This Row],[A]],Tableau_basededonnée[],27,0)","v":"Acier / Inox"},{"$f":"VLOOKUP(tblPoteau[[#This Row],[A]],Tableau_basededonnée[],28,0)","v":"Bonne(s)"},{"$f":"VLOOKUP(tblPoteau[[#This Row],[A]],Tableau_basededonnée[],29,0)","v":"Bonne(s) "},{"$f":"VLOOKUP(tblPoteau[[#This Row],[A]],Tableau_basededonnée[],30,0)","v":"Bon"},{"$f":"VLOOKUP(tblPoteau[[#This Row],[A]],Tableau_basededonnée[],31,0)","v":"Oui"},{"$f":"VLOOKUP(tblPoteau[[#This Row],[A]],Tableau_basededonnée[],32,0)","v":"En état"},{"$f":"VLOOKUP(tblPoteau[[#This Row],[A]],Tableau_basededonnée[],33,0)","v":14},{"$f":"VLOOKUP(tblPoteau[[#This Row],[A]],Tableau_basededonnée[],34,0)","v":23},{"$f":"VLOOKUP(tblPoteau[[#This Row],[A]],Tableau_basededonnée[],35,0)","v":55},{"$f":"VLOOKUP(tblPoteau[[#This Row],[A]],Tableau_basededonnée[],36,0)","v":"Non"},{"$f":"VLOOKUP(tblPoteau[[#This Row],[A]],Tableau_basededonnée[],37,0)","v":"SANS"},{"$f":"VLOOKUP(tblPoteau[[#This Row],[A]],Tableau_basededonnée[],38,0)","v":"Moyenne(s)"},{"$f":"VLOOKUP(tblPoteau[[#This Row],[A]],Tableau_basededonnée[],39,0)","v":"Mauvaise(s)"},{"$f":"VLOOKUP(tblPoteau[[#This Row],[A]],Tableau_basededonnée[],40,0)","v":"Oui"},{"$f":"VLOOKUP(tblPoteau[[#This Row],[A]],Tableau_basededonnée[],41,0)","v":"Oui"},{"$f":"VLOOKUP(tblPoteau[[#This Row],[A]],Tableau_basededonnée[],42,0)","v":"Oui"},{"$f":"VLOOKUP(tblPoteau[[#This Row],[A]],Tableau_basededonnée[],43,0)","v":"Oui"},{"$f":"VLOOKUP(tblPoteau[[#This Row],[A]],Tableau_basededonnée[],44,0)","v":"Oui"},{"$f":"VLOOKUP(tblPoteau[[#This Row],[A]],Tableau_basededonnée[],45,0)","v":"Non"},{"$f":"VLOOKUP(tblPoteau[[#This Row],[A]],Tableau_basededonnée[],46,0)","v":"Mauvais "},{"$f":"VLOOKUP(tblPoteau[[#This Row],[A]],Tableau_basededonnée[],47,0)","v":"Non"},{"$f":"VLOOKUP(tblPoteau[[#This Row],[A]],Tableau_basededonnée[],48,0)","v":"RIEN"},{"$f":"VLOOKUP(tblPoteau[[#This Row],[A]],Tableau_basededonnée[],49,0)","v":"OUI"},""]
["Oui",310,"2016-02-05",{"$f":"VLOOKUP(tblPoteau[[#This Row],[A]],Tableau_basededonnée[],5,0)","v":900},{"$f":"VLOOKUP(tblPoteau[[#This Row],[A]],Tableau_basededonnée[],6,0)","v":"FLEURS"},{"$f":"VLOOKUP(tblPoteau[[#This Row],[A]],Tableau_basededonnée[],7,0)","v":"CERISE"},{"$f":"VLOOKUP(tblPoteau[[#This Row],[A]],Tableau_basededonnée[],8,0)","v":"LAVANDE"},{"$f":"VLOOKUP(tblPoteau[[#This Row],[A]],Tableau_basededonnée[],9,0)","v":1},{"$f":"VLOOKUP(tblPoteau[[#This Row],[A]],Tableau_basededonnée[],10,0)","v":10},"Classique (javel)",{"$f":"VLOOKUP(tblPoteau[[#This Row],[A]],Tableau_basededonnée[],12,0)","v":4},{"$f":"VLOOKUP(tblPoteau[[#This Row],[A]],Tableau_basededonnée[],13,0)","v":"POTEAU"},{"$f":"VLOOKUP(tblPoteau[[#This Row],[A]],Tableau_basededonnée[],14,0)","v":"FIL"},{"$f":"VLOOKUP(tblPoteau[[#This Row],[A]],Tableau_basededonnée[],15,0)","v":"Bonne(s) "},{"$f":"VLOOKUP(tblPoteau[[#This Row],[A]],Tableau_basededonnée[],16,0)","v":"Bonne"},{"$f":"VLOOKUP(tblPoteau[[#This Row],[A]],Tableau_basededonnée[],17,0)","v":"Moyenne(s)"},{"$f":"VLOOKUP(tblPoteau[[#This Row],[A]],Tableau_basededonnée[],18,0)","v":"Bon"},{"$f":"VLOOKUP(tblPoteau[[#This Row],[A]],Tableau_basededonnée[],19,0)","v":"Moyenne(s)"},{"$f":"VLOOKUP(tblPoteau[[#This Row],[A]],Tableau_basededonnée[],20,0)","v":"Bon"},{"$f":"VLOOKUP(tblPoteau[[#This Row],[A]],Tableau_basededonnée[],21,0)","v":"Bonne(s)"},"Moyen",{"$f":"VLOOKUP(tblPoteau[[#This Row],[A]],Tableau_basededonnée[],23,0)","v":"Bonne(s) "},{"$f":"VLOOKUP(tblPoteau[[#This Row],[A]],Tableau_basededonnée[],24,0)","v":"Moyen"},{"$f":"VLOOKUP(tblPoteau[[#This Row],[A]],Tableau_basededonnée[],25,0)","v":"Bonne(s)"},{"$f":"VLOOKUP(tblPoteau[[#This Row],[A]],Tableau_basededonnée[],26,0)","v":"Bonne(s)"},{"$f":"VLOOKUP(tblPoteau[[#This Row],[A]],Tableau_basededonnée[],27,0)","v":"Acier / Pvc"},{"$f":"VLOOKUP(tblPoteau[[#This Row],[A]],Tableau_basededonnée[],28,0)","v":"Moyenne(s)"},{"$f":"VLOOKUP(tblPoteau[[#This Row],[A]],Tableau_basededonnée[],29,0)","v":"Moyenne(s)"},{"$f":"VLOOKUP(tblPoteau[[#This Row],[A]],Tableau_basededonnée[],30,0)","v":"Bon"},{"$f":"VLOOKUP(tblPoteau[[#This Row],[A]],Tableau_basededonnée[],31,0)","v":"Oui"},{"$f":"VLOOKUP(tblPoteau[[#This Row],[A]],Tableau_basededonnée[],32,0)","v":"BOBINE"},{"$f":"VLOOKUP(tblPoteau[[#This Row],[A]],Tableau_basededonnée[],33,0)","v":12},{"$f":"VLOOKUP(tblPoteau[[#This Row],[A]],Tableau_basededonnée[],34,0)","v":21},{"$f":"VLOOKUP(tblPoteau[[#This Row],[A]],Tableau_basededonnée[],35,0)","v":47},{"$f":"VLOOKUP(tblPoteau[[#This Row],[A]],Tableau_basededonnée[],36,0)","v":"Non"},{"$f":"VLOOKUP(tblPoteau[[#This Row],[A]],Tableau_basededonnée[],37,0)","v":"SANS"},{"$f":"VLOOKUP(tblPoteau[[#This Row],[A]],Tableau_basededonnée[],38,0)","v":"Moyenne(s)"},{"$f":"VLOOKUP(tblPoteau[[#This Row],[A]],Tableau_basededonnée[],39,0)","v":"Mauvaise(s)"},{"$f":"VLOOKUP(tblPoteau[[#This Row],[A]],Tableau_basededonnée[],40,0)","v":"Oui"},{"$f":"VLOOKUP(tblPoteau[[#This Row],[A]],Tableau_basededonnée[],41,0)","v":"Oui"},{"$f":"VLOOKUP(tblPoteau[[#This Row],[A]],Tableau_basededonnée[],42,0)","v":"Sans objet"},{"$f":"VLOOKUP(tblPoteau[[#This Row],[A]],Tableau_basededonnée[],43,0)","v":"Sans objet"},{"$f":"VLOOKUP(tblPoteau[[#This Row],[A]],Tableau_basededonnée[],44,0)","v":"Non"},{"$f":"VLOOKUP(tblPoteau[[#This Row],[A]],Tableau_basededonnée[],45,0)","v":"Non"},{"$f":"VLOOKUP(tblPoteau[[#This Row],[A]],Tableau_basededonnée[],46,0)","v":"Bon"},{"$f":"VLOOKUP(tblPoteau[[#This Row],[A]],Tableau_basededonnée[],47,0)","v":"Oui (NS)"},{"$f":"VLOOKUP(tblPoteau[[#This Row],[A]],Tableau_basededonnée[],48,0)","v":"RIEN"},{"$f":"VLOOKUP(tblPoteau[[#This Row],[A]],Tableau_basededonnée[],49,0)","v":"OUI"},""]
["Oui",319,"2016-02-10",{"$f":"VLOOKUP(tblPoteau[[#This Row],[A]],Tableau_basededonnée[],5,0)","v":900},{"$f":"VLOOKUP(tblPoteau[[#This Row],[A]],Tableau_basededonnée[],6,0)","v":"ARBRE"},{"$f":"VLOOKUP(tblPoteau[[#This Row],[A]],Tableau_basededonnée[],7,0)","v":"PRUNE"},{"$f":"VLOOKUP(tblPoteau[[#This Row],[A]],Tableau_basededonnée[],8,0)","v":"JONQUILLES"},{"$f":"VLOOKUP(tblPoteau[[#This Row],[A]],Tableau_basededonnée[],9,0)","v":1},{"$f":"VLOOKUP(tblPoteau[[#This Row],[A]],Tableau_basededonnée[],10,0)","v":100},"Chimique",{"$f":"VLOOKUP(tblPoteau[[#This Row],[A]],Tableau_basededonnée[],12,0)","v":8},{"$f":"VLOOKUP(tblPoteau[[#This Row],[A]],Tableau_basededonnée[],13,0)","v":"POTEAU"},{"$f":"VLOOKUP(tblPoteau[[#This Row],[A]],Tableau_basededonnée[],14,0)","v":"FIL"},{"$f":"VLOOKUP(tblPoteau[[#This Row],[A]],Tableau_basededonnée[],15,0)","v":"Moyenne(s)"},{"$f":"VLOOKUP(tblPoteau[[#This Row],[A]],Tableau_basededonnée[],16,0)","v":"Bonne"},{"$f":"VLOOKUP(tblPoteau[[#This Row],[A]],Tableau_basededonnée[],17,0)","v":"Moyenne(s)"},{"$f":"VLOOKUP(tblPoteau[[#This Row],[A]],Tableau_basededonnée[],18,0)","v":"Bon"},{"$f":"VLOOKUP(tblPoteau[[#This Row],[A]],Tableau_basededonnée[],19,0)","v":"Bonne(s) "},{"$f":"VLOOKUP(tblPoteau[[#This Row],[A]],Tableau_basededonnée[],20,0)","v":"Moyen"},{"$f":"VLOOKUP(tblPoteau[[#This Row],[A]],Tableau_basededonnée[],21,0)","v":"Bonne(s)"},"Moyen",{"$f":"VLOOKUP(tblPoteau[[#This Row],[A]],Tableau_basededonnée[],23,0)","v":"Bonne(s) "},{"$f":"VLOOKUP(tblPoteau[[#This Row],[A]],Tableau_basededonnée[],24,0)","v":"Bon"},{"$f":"VLOOKUP(tblPoteau[[#This Row],[A]],Tableau_basededonnée[],25,0)","v":"Bonne(s)"},{"$f":"VLOOKUP(tblPoteau[[#This Row],[A]],Tableau_basededonnée[],26,0)","v":"Bonne(s)"},{"$f":"VLOOKUP(tblPoteau[[#This Row],[A]],Tableau_basededonnée[],27,0)","v":"Acier"},{"$f":"VLOOKUP(tblPoteau[[#This Row],[A]],Tableau_basededonnée[],28,0)","v":"Moyenne(s)"},{"$f":"VLOOKUP(tblPoteau[[#This Row],[A]],Tableau_basededonnée[],29,0)","v":"Moyenne(s)"},{"$f":"VLOOKUP(tblPoteau[[#This Row],[A]],Tableau_basededonnée[],30,0)","v":"Moyen"},{"$f":"VLOOKUP(tblPoteau[[#This Row],[A]],Tableau_basededonnée[],31,0)","v":"Oui"},{"$f":"VLOOKUP(tblPoteau[[#This Row],[A]],Tableau_basededonnée[],32,0)","v":"En état"},{"$f":"VLOOKUP(tblPoteau[[#This Row],[A]],Tableau_basededonnée[],33,0)","v":15},{"$f":"VLOOKUP(tblPoteau[[#This Row],[A]],Tableau_basededonnée[],34,0)","v":24},{"$f":"VLOOKUP(tblPoteau[[#This Row],[A]],Tableau_basededonnée[],35,0)","v":55},{"$f":"VLOOKUP(tblPoteau[[#This Row],[A]],Tableau_basededonnée[],36,0)","v":"Non"},{"$f":"VLOOKUP(tblPoteau[[#This Row],[A]],Tableau_basededonnée[],37,0)","v":"SANS"},{"$f":"VLOOKUP(tblPoteau[[#This Row],[A]],Tableau_basededonnée[],38,0)","v":"Moyenne(s)"},{"$f":"VLOOKUP(tblPoteau[[#This Row],[A]],Tableau_basededonnée[],39,0)","v":"Mauvaise(s)"},{"$f":"VLOOKUP(tblPoteau[[#This Row],[A]],Tableau_basededonnée[],40,0)","v":"Oui"},{"$f":"VLOOKUP(tblPoteau[[#This Row],[A]],Tableau_basededonnée[],41,0)","v":"Oui"},{"$f":"VLOOKUP(tblPoteau[[#This Row],[A]],Tableau_basededonnée[],42,0)","v":"Oui"},{"$f":"VLOOKUP(tblPoteau[[#This Row],[A]],Tableau_basededonnée[],43,0)","v":"Oui"},{"$f":"VLOOKUP(tblPoteau[[#This Row],[A]],Tableau_basededonnée[],44,0)","v":"Non"},{"$f":"VLOOKUP(tblPoteau[[#This Row],[A]],Tableau_basededonnée[],45,0)","v":"Non"},{"$f":"VLOOKUP(tblPoteau[[#This Row],[A]],Tableau_basededonnée[],46,0)","v":"Bon"},{"$f":"VLOOKUP(tblPoteau[[#This Row],[A]],Tableau_basededonnée[],47,0)","v":"Non"},{"$f":"VLOOKUP(tblPoteau[[#This Row],[A]],Tableau_basededonnée[],48,0)","v":"RIEN"},{"$f":"VLOOKUP(tblPoteau[[#This Row],[A]],Tableau_basededonnée[],49,0)","v":"OUI"},""]
["Oui",321,"2016-04-13",{"$f":"VLOOKUP(tblPoteau[[#This Row],[A]],Tableau_basededonnée[],5,0)","v":900},{"$f":"VLOOKUP(tblPoteau[[#This Row],[A]],Tableau_basededonnée[],6,0)","v":"ARBRE"},{"$f":"VLOOKUP(tblPoteau[[#This Row],[A]],Tableau_basededonnée[],7,0)","v":"NOIX"},{"$f":"VLOOKUP(tblPoteau[[#This Row],[A]],Tableau_basededonnée[],8,0)","v":"NARCISSE"},{"$f":"VLOOKUP(tblPoteau[[#This Row],[A]],Tableau_basededonnée[],9,0)","v":1},{"$f":"VLOOKUP(tblPoteau[[#This Row],[A]],Tableau_basededonnée[],10,0)","v":100},"Chimique",{"$f":"VLOOKUP(tblPoteau[[#This Row],[A]],Tableau_basededonnée[],12,0)","v":5},{"$f":"VLOOKUP(tblPoteau[[#This Row],[A]],Tableau_basededonnée[],13,0)","v":"POTEAU"},{"$f":"VLOOKUP(tblPoteau[[#This Row],[A]],Tableau_basededonnée[],14,0)","v":"FIL"},{"$f":"VLOOKUP(tblPoteau[[#This Row],[A]],Tableau_basededonnée[],15,0)","v":"Bonne(s) "},{"$f":"VLOOKUP(tblPoteau[[#This Row],[A]],Tableau_basededonnée[],16,0)","v":"Bonne"},{"$f":"VLOOKUP(tblPoteau[[#This Row],[A]],Tableau_basededonnée[],17,0)","v":"Moyenne(s)"},{"$f":"VLOOKUP(tblPoteau[[#This Row],[A]],Tableau_basededonnée[],18,0)","v":"Bon"},{"$f":"VLOOKUP(tblPoteau[[#This Row],[A]],Tableau_basededonnée[],19,0)","v":"Bonne(s) "},{"$f":"VLOOKUP(tblPoteau[[#This Row],[A]],Tableau_basededonnée[],20,0)","v":"Bon"},{"$f":"VLOOKUP(tblPoteau[[#This Row],[A]],Tableau_basededonnée[],21,0)","v":"Bonne(s)"},"Moyen",{"$f":"VLOOKUP(tblPoteau[[#This Row],[A]],Tableau_basededonnée[],23,0)","v":"Bonne(s)"},{"$f":"VLOOKUP(tblPoteau[[#This Row],[A]],Tableau_basededonnée[],24,0)","v":"Bon"},{"$f":"VLOOKUP(tblPoteau[[#This Row],[A]],Tableau_basededonnée[],25,0)","v":"Bonne(s)"},{"$f":"VLOOKUP(tblPoteau[[#This Row],[A]],Tableau_basededonnée[],26,0)","v":"Bonne(s)"},{"$f":"VLOOKUP(tblPoteau[[#This Row],[A]],Tableau_basededonnée[],27,0)","v":"Acier / Pvc"},{"$f":"VLOOKUP(tblPoteau[[#This Row],[A]],Tableau_basededonnée[],28,0)","v":"Moyenne(s)"},{"$f":"VLOOKUP(tblPoteau[[#This Row],[A]],Tableau_basededonnée[],29,0)","v":"Moyenne(s)"},{"$f":"VLOOKUP(tblPoteau[[#This Row],[A]],Tableau_basededonnée[],30,0)","v":"Bon"},{"$f":"VLOOKUP(tblPoteau[[#This Row],[A]],Tableau_basededonnée[],31,0)","v":"Oui"},{"$f":"VLOOKUP(tblPoteau[[#This Row],[A]],Tableau_basededonnée[],32,0)","v":"En état"},{"$f":"VLOOKUP(tblPoteau[[#This Row],[A]],Tableau_basededonnée[],33,0)","v":17},{"$f":"VLOOKUP(tblPoteau[[#This Row],[A]],Tableau_basededonnée[],34,0)","v":26},{"$f":"VLOOKUP(tblPoteau[[#This Row],[A]],Tableau_basededonnée[],35,0)","v":55},{"$f":"VLOOKUP(tblPoteau[[#This Row],[A]],Tableau_basededonnée[],36,0)","v":"Non"},{"$f":"VLOOKUP(tblPoteau[[#This Row],[A]],Tableau_basededonnée[],37,0)","v":"SANS"},{"$f":"VLOOKUP(tblPoteau[[#This Row],[A]],Tableau_basededonnée[],38,0)","v":"Moyenne(s)"},{"$f":"VLOOKUP(tblPoteau[[#This Row],[A]],Tableau_basededonnée[],39,0)","v":"Mauvaise(s)"},{"$f":"VLOOKUP(tblPoteau[[#This Row],[A]],Tableau_basededonnée[],40,0)","v":"Oui"},{"$f":"VLOOKUP(tblPoteau[[#This Row],[A]],Tableau_basededonnée[],41,0)","v":"Oui"},{"$f":"VLOOKUP(tblPoteau[[#This Row],[A]],Tableau_basededonnée[],42,0)","v":"Oui"},{"$f":"VLOOKUP(tblPoteau[[#This Row],[A]],Tableau_basededonnée[],43,0)","v":"Non"},{"$f":"VLOOKUP(tblPoteau[[#This Row],[A]],Tableau_basededonnée[],44,0)","v":"Non"},{"$f":"VLOOKUP(tblPoteau[[#This Row],[A]],Tableau_basededonnée[],45,0)","v":"Non"},{"$f":"VLOOKUP(tblPoteau[[#This Row],[A]],Tableau_basededonnée[],46,0)","v":"Moyen"},{"$f":"VLOOKUP(tblPoteau[[#This Row],[A]],Tableau_basededonnée[],47,0)","v":"Non"},{"$f":"VLOOKUP(tblPoteau[[#This Row],[A]],Tableau_basededonnée[],48,0)","v":"RIEN"},{"$f":"VLOOKUP(tblPoteau[[#This Row],[A]],Tableau_basededonnée[],49,0)","v":"OUI"},""]
["Oui",320,"2016-10-18",{"$f":"VLOOKUP(tblPoteau[[#This Row],[A]],Tableau_basededonnée[],5,0)","v":900},{"$f":"VLOOKUP(tblPoteau[[#This Row],[A]],Tableau_basededonnée[],6,0)","v":"ARBRE"},{"$f":"VLOOKUP(tblPoteau[[#This Row],[A]],Tableau_basededonnée[],7,0)","v":"PECHE"},{"$f":"VLOOKUP(tblPoteau[[#This Row],[A]],Tableau_basededonnée[],8,0)","v":"MUGUET"},{"$f":"VLOOKUP(tblPoteau[[#This Row],[A]],Tableau_basededonnée[],9,0)","v":1},{"$f":"VLOOKUP(tblPoteau[[#This Row],[A]],Tableau_basededonnée[],10,0)","v":100},"Classique (javel)",{"$f":"VLOOKUP(tblPoteau[[#This Row],[A]],Tableau_basededonnée[],12,0)","v":4},{"$f":"VLOOKUP(tblPoteau[[#This Row],[A]],Tableau_basededonnée[],13,0)","v":"POTEAU"},{"$f":"VLOOKUP(tblPoteau[[#This Row],[A]],Tableau_basededonnée[],14,0)","v":"FIL"},{"$f":"VLOOKUP(tblPoteau[[#This Row],[A]],Tableau_basededonnée[],15,0)","v":"Moyenne(s)"},{"$f":"VLOOKUP(tblPoteau[[#This Row],[A]],Tableau_basededonnée[],16,0)","v":"Sans"},{"$f":"VLOOKUP(tblPoteau[[#This Row],[A]],Tableau_basededonnée[],17,0)","v":"Moyenne(s)"},{"$f":"VLOOKUP(tblPoteau[[#This Row],[A]],Tableau_basededonnée[],18,0)","v":"Bon"},{"$f":"VLOOKUP(tblPoteau[[#This Row],[A]],Tableau_basededonnée[],19,0)","v":"Bonne(s) "},{"$f":"VLOOKUP(tblPoteau[[#This Row],[A]],Tableau_basededonnée[],20,0)","v":"Moyen"},{"$f":"VLOOKUP(tblPoteau[[#This Row],[A]],Tableau_basededonnée[],21,0)","v":"Bonne(s)"},"Moyen",{"$f":"VLOOKUP(tblPoteau[[#This Row],[A]],Tableau_basededonnée[],23,0)","v":"Bonne(s)"},{"$f":"VLOOKUP(tblPoteau[[#This Row],[A]],Tableau_basededonnée[],24,0)","v":"Bon"},{"$f":"VLOOKUP(tblPoteau[[#This Row],[A]],Tableau_basededonnée[],25,0)","v":"Bonne(s)"},{"$f":"VLOOKUP(tblPoteau[[#This Row],[A]],Tableau_basededonnée[],26,0)","v":"Bonne(s)"},{"$f":"VLOOKUP(tblPoteau[[#This Row],[A]],Tableau_basededonnée[],27,0)","v":"Acier"},{"$f":"VLOOKUP(tblPoteau[[#This Row],[A]],Tableau_basededonnée[],28,0)","v":"Moyenne(s)"},{"$f":"VLOOKUP(tblPoteau[[#This Row],[A]],Tableau_basededonnée[],29,0)","v":"Moyenne(s)"},{"$f":"VLOOKUP(tblPoteau[[#This Row],[A]],Tableau_basededonnée[],30,0)","v":"Bon"},{"$f":"VLOOKUP(tblPoteau[[#This Row],[A]],Tableau_basededonnée[],31,0)","v":"Oui"},{"$f":"VLOOKUP(tblPoteau[[#This Row],[A]],Tableau_basededonnée[],32,0)","v":"En état"},{"$f":"VLOOKUP(tblPoteau[[#This Row],[A]],Tableau_basededonnée[],33,0)","v":16},{"$f":"VLOOKUP(tblPoteau[[#This Row],[A]],Tableau_basededonnée[],34,0)","v":25},{"$f":"VLOOKUP(tblPoteau[[#This Row],[A]],Tableau_basededonnée[],35,0)","v":55},{"$f":"VLOOKUP(tblPoteau[[#This Row],[A]],Tableau_basededonnée[],36,0)","v":"Non"},{"$f":"VLOOKUP(tblPoteau[[#This Row],[A]],Tableau_basededonnée[],37,0)","v":"SANS"},{"$f":"VLOOKUP(tblPoteau[[#This Row],[A]],Tableau_basededonnée[],38,0)","v":"Moyenne(s)"},{"$f":"VLOOKUP(tblPoteau[[#This Row],[A]],Tableau_basededonnée[],39,0)","v":"Mauvaise(s)"},{"$f":"VLOOKUP(tblPoteau[[#This Row],[A]],Tableau_basededonnée[],40,0)","v":"Oui"},{"$f":"VLOOKUP(tblPoteau[[#This Row],[A]],Tableau_basededonnée[],41,0)","v":"Oui"},{"$f":"VLOOKUP(tblPoteau[[#This Row],[A]],Tableau_basededonnée[],42,0)","v":"Oui"},{"$f":"VLOOKUP(tblPoteau[[#This Row],[A]],Tableau_basededonnée[],43,0)","v":"Oui"},{"$f":"VLOOKUP(tblPoteau[[#This Row],[A]],Tableau_basededonnée[],44,0)","v":"Non"},{"$f":"VLOOKUP(tblPoteau[[#This Row],[A]],Tableau_basededonnée[],45,0)","v":"Non"},{"$f":"VLOOKUP(tblPoteau[[#This Row],[A]],Tableau_basededonnée[],46,0)","v":"Bon"},{"$f":"VLOOKUP(tblPoteau[[#This Row],[A]],Tableau_basededonnée[],47,0)","v":"Non"},{"$f":"VLOOKUP(tblPoteau[[#This Row],[A]],Tableau_basededonnée[],48,0)","v":"RIEN"},{"$f":"VLOOKUP(tblPoteau[[#This Row],[A]],Tableau_basededonnée[],49,0)","v":"SANS"},""]
["Oui",311,"2017-01-11",{"$f":"VLOOKUP(tblPoteau[[#This Row],[A]],Tableau_basededonnée[],5,0)","v":900},{"$f":"VLOOKUP(tblPoteau[[#This Row],[A]],Tableau_basededonnée[],6,0)","v":"FLEURS"},{"$f":"VLOOKUP(tblPoteau[[#This Row],[A]],Tableau_basededonnée[],7,0)","v":"POIRE"},{"$f":"VLOOKUP(tblPoteau[[#This Row],[A]],Tableau_basededonnée[],8,0)","v":"ROSE"},{"$f":"VLOOKUP(tblPoteau[[#This Row],[A]],Tableau_basededonnée[],9,0)","v":1},{"$f":"VLOOKUP(tblPoteau[[#This Row],[A]],Tableau_basededonnée[],10,0)","v":50},"Chimique",{"$f":"VLOOKUP(tblPoteau[[#This Row],[A]],Tableau_basededonnée[],12,0)","v":6},{"$f":"VLOOKUP(tblPoteau[[#This Row],[A]],Tableau_basededonnée[],13,0)","v":"POTEAU"},{"$f":"VLOOKUP(tblPoteau[[#This Row],[A]],Tableau_basededonnée[],14,0)","v":"FIL"},{"$f":"VLOOKUP(tblPoteau[[#This Row],[A]],Tableau_basededonnée[],15,0)","v":"Bonne(s)"},{"$f":"VLOOKUP(tblPoteau[[#This Row],[A]],Tableau_basededonnée[],16,0)","v":"Bonne"},{"$f":"VLOOKUP(tblPoteau[[#This Row],[A]],Tableau_basededonnée[],17,0)","v":"Moyenne(s)"},{"$f":"VLOOKUP(tblPoteau[[#This Row],[A]],Tableau_basededonnée[],18,0)","v":"Bon"},{"$f":"VLOOKUP(tblPoteau[[#This Row],[A]],Tableau_basededonnée[],19,0)","v":"Bonne(s) "},{"$f":"VLOOKUP(tblPoteau[[#This Row],[A]],Tableau_basededonnée[],20,0)","v":"Moyen"},{"$f":"VLOOKUP(tblPoteau[[#This Row],[A]],Tableau_basededonnée[],21,0)","v":"Bonne(s)"},"Moyen",{"$f":"VLOOKUP(tblPoteau[[#This Row],[A]],Tableau_basededonnée[],23,0)","v":"Moyenne(s)"},{"$f":"VLOOKUP(tblPoteau[[#This Row],[A]],Tableau_basededonnée[],24,0)","v":"Bon"},{"$f":"VLOOKUP(tblPoteau[[#This Row],[A]],Tableau_basededonnée[],25,0)","v":"Bonne(s)"},{"$f":"VLOOKUP(tblPoteau[[#This Row],[A]],Tableau_basededonnée[],26,0)","v":"Bonne(s)"},{"$f":"VLOOKUP(tblPoteau[[#This Row],[A]],Tableau_basededonnée[],27,0)","v":"Pvc"},{"$f":"VLOOKUP(tblPoteau[[#This Row],[A]],Tableau_basededonnée[],28,0)","v":"Bonne(s)"},{"$f":"VLOOKUP(tblPoteau[[#This Row],[A]],Tableau_basededonnée[],29,0)","v":"Bonne(s) "},{"$f":"VLOOKUP(tblPoteau[[#This Row],[A]],Tableau_basededonnée[],30,0)","v":"Bon"},{"$f":"VLOOKUP(tblPoteau[[#This Row],[A]],Tableau_basededonnée[],31,0)","v":"Oui"},{"$f":"VLOOKUP(tblPoteau[[#This Row],[A]],Tableau_basededonnée[],32,0)","v":"En état"},{"$f":"VLOOKUP(tblPoteau[[#This Row],[A]],Tableau_basededonnée[],33,0)","v":13},{"$f":"VLOOKUP(tblPoteau[[#This Row],[A]],Tableau_basededonnée[],34,0)","v":22},{"$f":"VLOOKUP(tblPoteau[[#This Row],[A]],Tableau_basededonnée[],35,0)","v":"Oui"},{"$f":"VLOOKUP(tblPoteau[[#This Row],[A]],Tableau_basededonnée[],36,0)","v":"Non"},{"$f":"VLOOKUP(tblPoteau[[#This Row],[A]],Tableau_basededonnée[],37,0)","v":"SANS"},{"$f":"VLOOKUP(tblPoteau[[#This Row],[A]],Tableau_basededonnée[],38,0)","v":"Moyenne(s)"},{"$f":"VLOOKUP(tblPoteau[[#This Row],[A]],Tableau_basededonnée[],39,0)","v":"Mauvaise(s)"},{"$f":"VLOOKUP(tblPoteau[[#This Row],[A]],Tableau_basededonnée[],40,0)","v":"Oui"},{"$f":"VLOOKUP(tblPoteau[[#This Row],[A]],Tableau_basededonnée[],41,0)","v":"Oui"},{"$f":"VLOOKUP(tblPoteau[[#This Row],[A]],Tableau_basededonnée[],42,0)","v":"Oui"},{"$f":"VLOOKUP(tblPoteau[[#This Row],[A]],Tableau_basededonnée[],43,0)","v":"Oui"},{"$f":"VLOOKUP(tblPoteau[[#This Row],[A]],Tableau_basededonnée[],44,0)","v":"Non"},{"$f":"VLOOKUP(tblPoteau[[#This Row],[A]],Tableau_basededonnée[],45,0)","v":"Non"},{"$f":"VLOOKUP(tblPoteau[[#This Row],[A]],Tableau_basededonnée[],46,0)","v":"Bon"},{"$f":"VLOOKUP(tblPoteau[[#This Row],[A]],Tableau_basededonnée[],47,0)","v":"Non"},{"$f":"VLOOKUP(tblPoteau[[#This Row],[A]],Tableau_basededonnée[],48,0)","v":"RIEN"},{"$f":"VLOOKUP(tblPoteau[[#This Row],[A]],Tableau_basededonnée[],49,0)","v":"OUI"},""]
["Oui",310,"2017-01-13",{"$f":"VLOOKUP(tblPoteau[[#This Row],[A]],Tableau_basededonnée[],5,0)","v":900},{"$f":"VLOOKUP(tblPoteau[[#This Row],[A]],Tableau_basededonnée[],6,0)","v":"FLEURS"},{"$f":"VLOOKUP(tblPoteau[[#This Row],[A]],Tableau_basededonnée[],7,0)","v":"CERISE"},{"$f":"VLOOKUP(tblPoteau[[#This Row],[A]],Tableau_basededonnée[],8,0)","v":"LAVANDE"},{"$f":"VLOOKUP(tblPoteau[[#This Row],[A]],Tableau_basededonnée[],9,0)","v":1},{"$f":"VLOOKUP(tblPoteau[[#This Row],[A]],Tableau_basededonnée[],10,0)","v":10},"Classique (javel)",{"$f":"VLOOKUP(tblPoteau[[#This Row],[A]],Tableau_basededonnée[],12,0)","v":4},{"$f":"VLOOKUP(tblPoteau[[#This Row],[A]],Tableau_basededonnée[],13,0)","v":"POTEAU"},{"$f":"VLOOKUP(tblPoteau[[#This Row],[A]],Tableau_basededonnée[],14,0)","v":"FIL"},{"$f":"VLOOKUP(tblPoteau[[#This Row],[A]],Tableau_basededonnée[],15,0)","v":"Bonne(s) "},{"$f":"VLOOKUP(tblPoteau[[#This Row],[A]],Tableau_basededonnée[],16,0)","v":"Bonne"},{"$f":"VLOOKUP(tblPoteau[[#This Row],[A]],Tableau_basededonnée[],17,0)","v":"Moyenne(s)"},{"$f":"VLOOKUP(tblPoteau[[#This Row],[A]],Tableau_basededonnée[],18,0)","v":"Bon"},{"$f":"VLOOKUP(tblPoteau[[#This Row],[A]],Tableau_basededonnée[],19,0)","v":"Moyenne(s)"},{"$f":"VLOOKUP(tblPoteau[[#This Row],[A]],Tableau_basededonnée[],20,0)","v":"Bon"},{"$f":"VLOOKUP(tblPoteau[[#This Row],[A]],Tableau_basededonnée[],21,0)","v":"Bonne(s)"},"Moyen",{"$f":"VLOOKUP(tblPoteau[[#This Row],[A]],Tableau_basededonnée[],23,0)","v":"Bonne(s) "},{"$f":"VLOOKUP(tblPoteau[[#This Row],[A]],Tableau_basededonnée[],24,0)","v":"Moyen"},{"$f":"VLOOKUP(tblPoteau[[#This Row],[A]],Tableau_basededonnée[],25,0)","v":"Bonne(s)"},{"$f":"VLOOKUP(tblPoteau[[#This Row],[A]],Tableau_basededonnée[],26,0)","v":"Bonne(s)"},{"$f":"VLOOKUP(tblPoteau[[#This Row],[A]],Tableau_basededonnée[],27,0)","v":"Acier / Pvc"},{"$f":"VLOOKUP(tblPoteau[[#This Row],[A]],Tableau_basededonnée[],28,0)","v":"Moyenne(s)"},{"$f":"VLOOKUP(tblPoteau[[#This Row],[A]],Tableau_basededonnée[],29,0)","v":"Moyenne(s)"},{"$f":"VLOOKUP(tblPoteau[[#This Row],[A]],Tableau_basededonnée[],30,0)","v":"Bon"},{"$f":"VLOOKUP(tblPoteau[[#This Row],[A]],Tableau_basededonnée[],31,0)","v":"Oui"},{"$f":"VLOOKUP(tblPoteau[[#This Row],[A]],Tableau_basededonnée[],32,0)","v":"BOBINE"},{"$f":"VLOOKUP(tblPoteau[[#This Row],[A]],Tableau_basededonnée[],33,0)","v":12},{"$f":"VLOOKUP(tblPoteau[[#This Row],[A]],Tableau_basededonnée[],34,0)","v":21},{"$f":"VLOOKUP(tblPoteau[[#This Row],[A]],Tableau_basededonnée[],35,0)","v":47},{"$f":"VLOOKUP(tblPoteau[[#This Row],[A]],Tableau_basededonnée[],36,0)","v":"Non"},{"$f":"VLOOKUP(tblPoteau[[#This Row],[A]],Tableau_basededonnée[],37,0)","v":"SANS"},{"$f":"VLOOKUP(tblPoteau[[#This Row],[A]],Tableau_basededonnée[],38,0)","v":"Moyenne(s)"},{"$f":"VLOOKUP(tblPoteau[[#This Row],[A]],Tableau_basededonnée[],39,0)","v":"Mauvaise(s)"},{"$f":"VLOOKUP(tblPoteau[[#This Row],[A]],Tableau_basededonnée[],40,0)","v":"Oui"},{"$f":"VLOOKUP(tblPoteau[[#This Row],[A]],Tableau_basededonnée[],41,0)","v":"Oui"},{"$f":"VLOOKUP(tblPoteau[[#This Row],[A]],Tableau_basededonnée[],42,0)","v":"Sans objet"},{"$f":"VLOOKUP(tblPoteau[[#This Row],[A]],Tableau_basededonnée[],43,0)","v":"Sans objet"},{"$f":"VLOOKUP(tblPoteau[[#This Row],[A]],Tableau_basededonnée[],44,0)","v":"Non"},{"$f":"VLOOKUP(tblPoteau[[#This Row],[A]],Tableau_basededonnée[],45,0)","v":"Non"},{"$f":"VLOOKUP(tblPoteau[[#This Row],[A]],Tableau_basededonnée[],46,0)","v":"Bon"},{"$f":"VLOOKUP(tblPoteau[[#This Row],[A]],Tableau_basededonnée[],47,0)","v":"Oui (NS)"},{"$f":"VLOOKUP(tblPoteau[[#This Row],[A]],Tableau_basededonnée[],48,0)","v":"RIEN"},{"$f":"VLOOKUP(tblPoteau[[#This Row],[A]],Tableau_basededonnée[],49,0)","v":"OUI"},""]
["Oui",312,"2017-05-25",{"$f":"VLOOKUP(tblPoteau[[#This Row],[A]],Tableau_basededonnée[],5,0)","v":900},{"$f":"VLOOKUP(tblPoteau[[#This Row],[A]],Tableau_basededonnée[],6,0)","v":"FLEURS"},{"$f":"VLOOKUP(tblPoteau[[#This Row],[A]],Tableau_basededonnée[],7,0)","v":"POMME"},{"$f":"VLOOKUP(tblPoteau[[#This Row],[A]],Tableau_basededonnée[],8,0)","v":"PAQUERETTE"},{"$f":"VLOOKUP(tblPoteau[[#This Row],[A]],Tableau_basededonnée[],9,0)","v":1},{"$f":"VLOOKUP(tblPoteau[[#This Row],[A]],Tableau_basededonnée[],10,0)","v":150},"Classique (javel)",{"$f":"VLOOKUP(tblPoteau[[#This Row],[A]],Tableau_basededonnée[],12,0)","v":7},{"$f":"VLOOKUP(tblPoteau[[#This Row],[A]],Tableau_basededonnée[],13,0)","v":"POTEAU"},{"$f":"VLOOKUP(tblPoteau[[#This Row],[A]],Tableau_basededonnée[],14,0)","v":"FIL"},{"$f":"VLOOKUP(tblPoteau[[#This Row],[A]],Tableau_basededonnée[],15,0)","v":"Moyenne(s)"},{"$f":"VLOOKUP(tblPoteau[[#This Row],[A]],Tableau_basededonnée[],16,0)","v":"Sans"},{"$f":"VLOOKUP(tblPoteau[[#This Row],[A]],Tableau_basededonnée[],17,0)","v":"Moyenne(s)"},{"$f":"VLOOKUP(tblPoteau[[#This Row],[A]],Tableau_basededonnée[],18,0)","v":"Moyen"},{"$f":"VLOOKUP(tblPoteau[[#This Row],[A]],Tableau_basededonnée[],19,0)","v":"Bonne(s) "},{"$f":"VLOOKUP(tblPoteau[[#This Row],[A]],Tableau_basededonnée[],20,0)","v":"Moyen"},{"$f":"VLOOKUP(tblPoteau[[#This Row],[A]],Tableau_basededonnée[],21,0)","v":"Bonne(s)"},"Moyen",{"$f":"VLOOKUP(tblPoteau[[#This Row],[A]],Tableau_basededonnée[],23,0)","v":"Bonne(s)"},{"$f":"VLOOKUP(tblPoteau[[#This Row],[A]],Tableau_basededonnée[],24,0)","v":"Moyen"},{"$f":"VLOOKUP(tblPoteau[[#This Row],[A]],Tableau_basededonnée[],25,0)","v":"Bonne(s)"},{"$f":"VLOOKUP(tblPoteau[[#This Row],[A]],Tableau_basededonnée[],26,0)","v":"Bonne(s)"},{"$f":"VLOOKUP(tblPoteau[[#This Row],[A]],Tableau_basededonnée[],27,0)","v":"Acier / Inox"},{"$f":"VLOOKUP(tblPoteau[[#This Row],[A]],Tableau_basededonnée[],28,0)","v":"Bonne(s)"},{"$f":"VLOOKUP(tblPoteau[[#This Row],[A]],Tableau_basededonnée[],29,0)","v":"Bonne(s) "},{"$f":"VLOOKUP(tblPoteau[[#This Row],[A]],Tableau_basededonnée[],30,0)","v":"Bon"},{"$f":"VLOOKUP(tblPoteau[[#This Row],[A]],Tableau_basededonnée[],31,0)","v":"Oui"},{"$f":"VLOOKUP(tblPoteau[[#This Row],[A]],Tableau_basededonnée[],32,0)","v":"En état"},{"$f":"VLOOKUP(tblPoteau[[#This Row],[A]],Tableau_basededonnée[],33,0)","v":14},{"$f":"VLOOKUP(tblPoteau[[#This Row],[A]],Tableau_basededonnée[],34,0)","v":23},{"$f":"VLOOKUP(tblPoteau[[#This Row],[A]],Tableau_basededonnée[],35,0)","v":55},{"$f":"VLOOKUP(tblPoteau[[#This Row],[A]],Tableau_basededonnée[],36,0)","v":"Non"},{"$f":"VLOOKUP(tblPoteau[[#This Row],[A]],Tableau_basededonnée[],37,0)","v":"SANS"},{"$f":"VLOOKUP(tblPoteau[[#This Row],[A]],Tableau_basededonnée[],38,0)","v":"Moyenne(s)"},{"$f":"VLOOKUP(tblPoteau[[#This Row],[A]],Tableau_basededonnée[],39,0)","v":"Mauvaise(s)"},{"$f":"VLOOKUP(tblPoteau[[#This Row],[A]],Tableau_basededonnée[],40,0)","v":"Oui"},{"$f":"VLOOKUP(tblPoteau[[#This Row],[A]],Tableau_basededonnée[],41,0)","v":"Oui"},{"$f":"VLOOKUP(tblPoteau[[#This Row],[A]],Tableau_basededonnée[],42,0)","v":"Oui"},{"$f":"VLOOKUP(tblPoteau[[#This Row],[A]],Tableau_basededonnée[],43,0)","v":"Oui"},{"$f":"VLOOKUP(tblPoteau[[#This Row],[A]],Tableau_basededonnée[],44,0)","v":"Oui"},{"$f":"VLOOKUP(tblPoteau[[#This Row],[A]],Tableau_basededonnée[],45,0)","v":"Non"},{"$f":"VLOOKUP(tblPoteau[[#This Row],[A]],Tableau_basededonnée[],46,0)","v":"Mauvais "},{"$f":"VLOOKUP(tblPoteau[[#This Row],[A]],Tableau_basededonnée[],47,0)","v":"Non"},{"$f":"VLOOKUP(tblPoteau[[#This Row],[A]],Tableau_basededonnée[],48,0)","v":"RIEN"},{"$f":"VLOOKUP(tblPoteau[[#This Row],[A]],Tableau_basededonnée[],49,0)","v":"OUI"},""]
["Oui",321,"2017-04-20",{"$f":"VLOOKUP(tblPoteau[[#This Row],[A]],Tableau_basededonnée[],5,0)","v":900},{"$f":"VLOOKUP(tblPoteau[[#This Row],[A]],Tableau_basededonnée[],6,0)","v":"ARBRE"},{"$f":"VLOOKUP(tblPoteau[[#This Row],[A]],Tableau_basededonnée[],7,0)","v":"NOIX"},{"$f":"VLOOKUP(tblPoteau[[#This Row],[A]],Tableau_basededonnée[],8,0)","v":"NARCISSE"},{"$f":"VLOOKUP(tblPoteau[[#This Row],[A]],Tableau_basededonnée[],9,0)","v":1},{"$f":"VLOOKUP(tblPoteau[[#This Row],[A]],Tableau_basededonnée[],10,0)","v":100},"Chimique",{"$f":"VLOOKUP(tblPoteau[[#This Row],[A]],Tableau_basededonnée[],12,0)","v":5},{"$f":"VLOOKUP(tblPoteau[[#This Row],[A]],Tableau_basededonnée[],13,0)","v":"POTEAU"},{"$f":"VLOOKUP(tblPoteau[[#This Row],[A]],Tableau_basededonnée[],14,0)","v":"FIL"},{"$f":"VLOOKUP(tblPoteau[[#This Row],[A]],Tableau_basededonnée[],15,0)","v":"Bonne(s) "},{"$f":"VLOOKUP(tblPoteau[[#This Row],[A]],Tableau_basededonnée[],16,0)","v":"Bonne"},{"$f":"VLOOKUP(tblPoteau[[#This Row],[A]],Tableau_basededonnée[],17,0)","v":"Moyenne(s)"},{"$f":"VLOOKUP(tblPoteau[[#This Row],[A]],Tableau_basededonnée[],18,0)","v":"Bon"},{"$f":"VLOOKUP(tblPoteau[[#This Row],[A]],Tableau_basededonnée[],19,0)","v":"Bonne(s) "},{"$f":"VLOOKUP(tblPoteau[[#This Row],[A]],Tableau_basededonnée[],20,0)","v":"Bon"},{"$f":"VLOOKUP(tblPoteau[[#This Row],[A]],Tableau_basededonnée[],21,0)","v":"Bonne(s)"},"Moyen",{"$f":"VLOOKUP(tblPoteau[[#This Row],[A]],Tableau_basededonnée[],23,0)","v":"Bonne(s)"},{"$f":"VLOOKUP(tblPoteau[[#This Row],[A]],Tableau_basededonnée[],24,0)","v":"Bon"},{"$f":"VLOOKUP(tblPoteau[[#This Row],[A]],Tableau_basededonnée[],25,0)","v":"Bonne(s)"},{"$f":"VLOOKUP(tblPoteau[[#This Row],[A]],Tableau_basededonnée[],26,0)","v":"Bonne(s)"},{"$f":"VLOOKUP(tblPoteau[[#This Row],[A]],Tableau_basededonnée[],27,0)","v":"Acier / Pvc"},{"$f":"VLOOKUP(tblPoteau[[#This Row],[A]],Tableau_basededonnée[],28,0)","v":"Moyenne(s)"},{"$f":"VLOOKUP(tblPoteau[[#This Row],[A]],Tableau_basededonnée[],29,0)","v":"Moyenne(s)"},{"$f":"VLOOKUP(tblPoteau[[#This Row],[A]],Tableau_basededonnée[],30,0)","v":"Bon"},{"$f":"VLOOKUP(tblPoteau[[#This Row],[A]],Tableau_basededonnée[],31,0)","v":"Oui"},{"$f":"VLOOKUP(tblPoteau[[#This Row],[A]],Tableau_basededonnée[],32,0)","v":"En état"},{"$f":"VLOOKUP(tblPoteau[[#This Row],[A]],Tableau_basededonnée[],33,0)","v":17},{"$f":"VLOOKUP(tblPoteau[[#This Row],[A]],Tableau_basededonnée[],34,0)","v":26},{"$f":"VLOOKUP(tblPoteau[[#This Row],[A]],Tableau_basededonnée[],35,0)","v":55},{"$f":"VLOOKUP(tblPoteau[[#This Row],[A]],Tableau_basededonnée[],36,0)","v":"Non"},{"$f":"VLOOKUP(tblPoteau[[#This Row],[A]],Tableau_basededonnée[],37,0)","v":"SANS"},{"$f":"VLOOKUP(tblPoteau[[#This Row],[A]],Tableau_basededonnée[],38,0)","v":"Moyenne(s)"},{"$f":"VLOOKUP(tblPoteau[[#This Row],[A]],Tableau_basededonnée[],39,0)","v":"Mauvaise(s)"},{"$f":"VLOOKUP(tblPoteau[[#This Row],[A]],Tableau_basededonnée[],40,0)","v":"Oui"},{"$f":"VLOOKUP(tblPoteau[[#This Row],[A]],Tableau_basededonnée[],41,0)","v":"Oui"},{"$f":"VLOOKUP(tblPoteau[[#This Row],[A]],Tableau_basededonnée[],42,0)","v":"Oui"},{"$f":"VLOOKUP(tblPoteau[[#This Row],[A]],Tableau_basededonnée[],43,0)","v":"Non"},{"$f":"VLOOKUP(tblPoteau[[#This Row],[A]],Tableau_basededonnée[],44,0)","v":"Non"},{"$f":"VLOOKUP(tblPoteau[[#This Row],[A]],Tableau_basededonnée[],45,0)","v":"Non"},{"$f":"VLOOKUP(tblPoteau[[#This Row],[A]],Tableau_basededonnée[],46,0)","v":"Moyen"},{"$f":"VLOOKUP(tblPoteau[[#This Row],[A]],Tableau_basededonnée[],47,0)","v":"Non"},{"$f":"VLOOKUP(tblPoteau[[#This Row],[A]],Tableau_basededonnée[],48,0)","v":"RIEN"},{"$f":"VLOOKUP(tblPoteau[[#This Row],[A]],Tableau_basededonnée[],49,0)","v":"OUI"}]
["Oui",310,"2018-01-04",{"$f":"VLOOKUP(tblPoteau[[#This Row],[A]],Tableau_basededonnée[],5,0)","v":900},{"$f":"VLOOKUP(tblPoteau[[#This Row],[A]],Tableau_basededonnée[],6,0)","v":"FLEURS"},{"$f":"VLOOKUP(tblPoteau[[#This Row],[A]],Tableau_basededonnée[],7,0)","v":"CERISE"},{"$f":"VLOOKUP(tblPoteau[[#This Row],[A]],Tableau_basededonnée[],8,0)","v":"LAVANDE"},{"$f":"VLOOKUP(tblPoteau[[#This Row],[A]],Tableau_basededonnée[],9,0)","v":1},{"$f":"VLOOKUP(tblPoteau[[#This Row],[A]],Tableau_basededonnée[],10,0)","v":10},"Classique (javel)",{"$f":"VLOOKUP(tblPoteau[[#This Row],[A]],Tableau_basededonnée[],12,0)","v":4},{"$f":"VLOOKUP(tblPoteau[[#This Row],[A]],Tableau_basededonnée[],13,0)","v":"POTEAU"},{"$f":"VLOOKUP(tblPoteau[[#This Row],[A]],Tableau_basededonnée[],14,0)","v":"FIL"},{"$f":"VLOOKUP(tblPoteau[[#This Row],[A]],Tableau_basededonnée[],15,0)","v":"Bonne(s) "},{"$f":"VLOOKUP(tblPoteau[[#This Row],[A]],Tableau_basededonnée[],16,0)","v":"Bonne"},{"$f":"VLOOKUP(tblPoteau[[#This Row],[A]],Tableau_basededonnée[],17,0)","v":"Moyenne(s)"},{"$f":"VLOOKUP(tblPoteau[[#This Row],[A]],Tableau_basededonnée[],18,0)","v":"Bon"},{"$f":"VLOOKUP(tblPoteau[[#This Row],[A]],Tableau_basededonnée[],19,0)","v":"Moyenne(s)"},{"$f":"VLOOKUP(tblPoteau[[#This Row],[A]],Tableau_basededonnée[],20,0)","v":"Bon"},{"$f":"VLOOKUP(tblPoteau[[#This Row],[A]],Tableau_basededonnée[],21,0)","v":"Bonne(s)"},"Moyen",{"$f":"VLOOKUP(tblPoteau[[#This Row],[A]],Tableau_basededonnée[],23,0)","v":"Bonne(s) "},{"$f":"VLOOKUP(tblPoteau[[#This Row],[A]],Tableau_basededonnée[],24,0)","v":"Moyen"},{"$f":"VLOOKUP(tblPoteau[[#This Row],[A]],Tableau_basededonnée[],25,0)","v":"Bonne(s)"},{"$f":"VLOOKUP(tblPoteau[[#This Row],[A]],Tableau_basededonnée[],26,0)","v":"Bonne(s)"},{"$f":"VLOOKUP(tblPoteau[[#This Row],[A]],Tableau_basededonnée[],27,0)","v":"Acier / Pvc"},{"$f":"VLOOKUP(tblPoteau[[#This Row],[A]],Tableau_basededonnée[],28,0)","v":"Moyenne(s)"},{"$f":"VLOOKUP(tblPoteau[[#This Row],[A]],Tableau_basededonnée[],29,0)","v":"Moyenne(s)"},{"$f":"VLOOKUP(tblPoteau[[#This Row],[A]],Tableau_basededonnée[],30,0)","v":"Bon"},{"$f":"VLOOKUP(tblPoteau[[#This Row],[A]],Tableau_basededonnée[],31,0)","v":"Oui"},{"$f":"VLOOKUP(tblPoteau[[#This Row],[A]],Tableau_basededonnée[],32,0)","v":"BOBINE"},{"$f":"VLOOKUP(tblPoteau[[#This Row],[A]],Tableau_basededonnée[],33,0)","v":12},{"$f":"VLOOKUP(tblPoteau[[#This Row],[A]],Tableau_basededonnée[],34,0)","v":21},{"$f":"VLOOKUP(tblPoteau[[#This Row],[A]],Tableau_basededonnée[],35,0)","v":47},{"$f":"VLOOKUP(tblPoteau[[#This Row],[A]],Tableau_basededonnée[],36,0)","v":"Non"},{"$f":"VLOOKUP(tblPoteau[[#This Row],[A]],Tableau_basededonnée[],37,0)","v":"SANS"},{"$f":"VLOOKUP(tblPoteau[[#This Row],[A]],Tableau_basededonnée[],38,0)","v":"Moyenne(s)"},{"$f":"VLOOKUP(tblPoteau[[#This Row],[A]],Tableau_basededonnée[],39,0)","v":"Mauvaise(s)"},{"$f":"VLOOKUP(tblPoteau[[#This Row],[A]],Tableau_basededonnée[],40,0)","v":"Oui"},{"$f":"VLOOKUP(tblPoteau[[#This Row],[A]],Tableau_basededonnée[],41,0)","v":"Oui"},{"$f":"VLOOKUP(tblPoteau[[#This Row],[A]],Tableau_basededonnée[],42,0)","v":"Sans objet"},{"$f":"VLOOKUP(tblPoteau[[#This Row],[A]],Tableau_basededonnée[],43,0)","v":"Sans objet"},{"$f":"VLOOKUP(tblPoteau[[#This Row],[A]],Tableau_basededonnée[],44,0)","v":"Non"},{"$f":"VLOOKUP(tblPoteau[[#This Row],[A]],Tableau_basededonnée[],45,0)","v":"Non"},{"$f":"VLOOKUP(tblPoteau[[#This Row],[A]],Tableau_basededonnée[],46,0)","v":"Bon"},{"$f":"VLOOKUP(tblPoteau[[#This Row],[A]],Tableau_basededonnée[],47,0)","v":"Oui (NS)"},{"$f":"VLOOKUP(tblPoteau[[#This Row],[A]],Tableau_basededonnée[],48,0)","v":"RIEN"},{"$f":"VLOOKUP(tblPoteau[[#This Row],[A]],Tableau_basededonnée[],49,0)","v":"OUI"}]
["Oui",311,"2018-01-18",{"$f":"VLOOKUP(tblPoteau[[#This Row],[A]],Tableau_basededonnée[],5,0)","v":900},{"$f":"VLOOKUP(tblPoteau[[#This Row],[A]],Tableau_basededonnée[],6,0)","v":"FLEURS"},{"$f":"VLOOKUP(tblPoteau[[#This Row],[A]],Tableau_basededonnée[],7,0)","v":"POIRE"},{"$f":"VLOOKUP(tblPoteau[[#This Row],[A]],Tableau_basededonnée[],8,0)","v":"ROSE"},{"$f":"VLOOKUP(tblPoteau[[#This Row],[A]],Tableau_basededonnée[],9,0)","v":1},{"$f":"VLOOKUP(tblPoteau[[#This Row],[A]],Tableau_basededonnée[],10,0)","v":50},"Chimique",{"$f":"VLOOKUP(tblPoteau[[#This Row],[A]],Tableau_basededonnée[],12,0)","v":6},{"$f":"VLOOKUP(tblPoteau[[#This Row],[A]],Tableau_basededonnée[],13,0)","v":"POTEAU"},{"$f":"VLOOKUP(tblPoteau[[#This Row],[A]],Tableau_basededonnée[],14,0)","v":"FIL"},{"$f":"VLOOKUP(tblPoteau[[#This Row],[A]],Tableau_basededonnée[],15,0)","v":"Bonne(s)"},{"$f":"VLOOKUP(tblPoteau[[#This Row],[A]],Tableau_basededonnée[],16,0)","v":"Bonne"},{"$f":"VLOOKUP(tblPoteau[[#This Row],[A]],Tableau_basededonnée[],17,0)","v":"Moyenne(s)"},{"$f":"VLOOKUP(tblPoteau[[#This Row],[A]],Tableau_basededonnée[],18,0)","v":"Bon"},{"$f":"VLOOKUP(tblPoteau[[#This Row],[A]],Tableau_basededonnée[],19,0)","v":"Bonne(s) "},{"$f":"VLOOKUP(tblPoteau[[#This Row],[A]],Tableau_basededonnée[],20,0)","v":"Moyen"},{"$f":"VLOOKUP(tblPoteau[[#This Row],[A]],Tableau_basededonnée[],21,0)","v":"Bonne(s)"},"Moyen",{"$f":"VLOOKUP(tblPoteau[[#This Row],[A]],Tableau_basededonnée[],23,0)","v":"Moyenne(s)"},{"$f":"VLOOKUP(tblPoteau[[#This Row],[A]],Tableau_basededonnée[],24,0)","v":"Bon"},{"$f":"VLOOKUP(tblPoteau[[#This Row],[A]],Tableau_basededonnée[],25,0)","v":"Bonne(s)"},{"$f":"VLOOKUP(tblPoteau[[#This Row],[A]],Tableau_basededonnée[],26,0)","v":"Bonne(s)"},{"$f":"VLOOKUP(tblPoteau[[#This Row],[A]],Tableau_basededonnée[],27,0)","v":"Pvc"},{"$f":"VLOOKUP(tblPoteau[[#This Row],[A]],Tableau_basededonnée[],28,0)","v":"Bonne(s)"},{"$f":"VLOOKUP(tblPoteau[[#This Row],[A]],Tableau_basededonnée[],29,0)","v":"Bonne(s) "},{"$f":"VLOOKUP(tblPoteau[[#This Row],[A]],Tableau_basededonnée[],30,0)","v":"Bon"},{"$f":"VLOOKUP(tblPoteau[[#This Row],[A]],Tableau_basededonnée[],31,0)","v":"Oui"},{"$f":"VLOOKUP(tblPoteau[[#This Row],[A]],Tableau_basededonnée[],32,0)","v":"En état"},{"$f":"VLOOKUP(tblPoteau[[#This Row],[A]],Tableau_basededonnée[],33,0)","v":13},{"$f":"VLOOKUP(tblPoteau[[#This Row],[A]],Tableau_basededonnée[],34,0)","v":22},{"$f":"VLOOKUP(tblPoteau[[#This Row],[A]],Tableau_basededonnée[],35,0)","v":"Oui"},{"$f":"VLOOKUP(tblPoteau[[#This Row],[A]],Tableau_basededonnée[],36,0)","v":"Non"},{"$f":"VLOOKUP(tblPoteau[[#This Row],[A]],Tableau_basededonnée[],37,0)","v":"SANS"},{"$f":"VLOOKUP(tblPoteau[[#This Row],[A]],Tableau_basededonnée[],38,0)","v":"Moyenne(s)"},{"$f":"VLOOKUP(tblPoteau[[#This Row],[A]],Tableau_basededonnée[],39,0)","v":"Mauvaise(s)"},{"$f":"VLOOKUP(tblPoteau[[#This Row],[A]],Tableau_basededonnée[],40,0)","v":"Oui"},{"$f":"VLOOKUP(tblPoteau[[#This Row],[A]],Tableau_basededonnée[],41,0)","v":"Oui"},{"$f":"VLOOKUP(tblPoteau[[#This Row],[A]],Tableau_basededonnée[],42,0)","v":"Oui"},{"$f":"VLOOKUP(tblPoteau[[#This Row],[A]],Tableau_basededonnée[],43,0)","v":"Oui"},{"$f":"VLOOKUP(tblPoteau[[#This Row],[A]],Tableau_basededonnée[],44,0)","v":"Non"},{"$f":"VLOOKUP(tblPoteau[[#This Row],[A]],Tableau_basededonnée[],45,0)","v":"Non"},{"$f":"VLOOKUP(tblPoteau[[#This Row],[A]],Tableau_basededonnée[],46,0)","v":"Bon"},{"$f":"VLOOKUP(tblPoteau[[#This Row],[A]],Tableau_basededonnée[],47,0)","v":"Non"},{"$f":"VLOOKUP(tblPoteau[[#This Row],[A]],Tableau_basededonnée[],48,0)","v":"RIEN"},{"$f":"VLOOKUP(tblPoteau[[#This Row],[A]],Tableau_basededonnée[],49,0)","v":"OUI"}]
["Oui",312,"2018-03-22",{"$f":"VLOOKUP(tblPoteau[[#This Row],[A]],Tableau_basededonnée[],5,0)","v":900},{"$f":"VLOOKUP(tblPoteau[[#This Row],[A]],Tableau_basededonnée[],6,0)","v":"FLEURS"},{"$f":"VLOOKUP(tblPoteau[[#This Row],[A]],Tableau_basededonnée[],7,0)","v":"POMME"},{"$f":"VLOOKUP(tblPoteau[[#This Row],[A]],Tableau_basededonnée[],8,0)","v":"PAQUERETTE"},{"$f":"VLOOKUP(tblPoteau[[#This Row],[A]],Tableau_basededonnée[],9,0)","v":1},{"$f":"VLOOKUP(tblPoteau[[#This Row],[A]],Tableau_basededonnée[],10,0)","v":150},"Classique (javel)",{"$f":"VLOOKUP(tblPoteau[[#This Row],[A]],Tableau_basededonnée[],12,0)","v":7},{"$f":"VLOOKUP(tblPoteau[[#This Row],[A]],Tableau_basededonnée[],13,0)","v":"POTEAU"},{"$f":"VLOOKUP(tblPoteau[[#This Row],[A]],Tableau_basededonnée[],14,0)","v":"FIL"},{"$f":"VLOOKUP(tblPoteau[[#This Row],[A]],Tableau_basededonnée[],15,0)","v":"Moyenne(s)"},{"$f":"VLOOKUP(tblPoteau[[#This Row],[A]],Tableau_basededonnée[],16,0)","v":"Sans"},{"$f":"VLOOKUP(tblPoteau[[#This Row],[A]],Tableau_basededonnée[],17,0)","v":"Moyenne(s)"},{"$f":"VLOOKUP(tblPoteau[[#This Row],[A]],Tableau_basededonnée[],18,0)","v":"Moyen"},{"$f":"VLOOKUP(tblPoteau[[#This Row],[A]],Tableau_basededonnée[],19,0)","v":"Bonne(s) "},{"$f":"VLOOKUP(tblPoteau[[#This Row],[A]],Tableau_basededonnée[],20,0)","v":"Moyen"},{"$f":"VLOOKUP(tblPoteau[[#This Row],[A]],Tableau_basededonnée[],21,0)","v":"Bonne(s)"},"Moyen",{"$f":"VLOOKUP(tblPoteau[[#This Row],[A]],Tableau_basededonnée[],23,0)","v":"Bonne(s)"},{"$f":"VLOOKUP(tblPoteau[[#This Row],[A]],Tableau_basededonnée[],24,0)","v":"Moyen"},{"$f":"VLOOKUP(tblPoteau[[#This Row],[A]],Tableau_basededonnée[],25,0)","v":"Bonne(s)"},{"$f":"VLOOKUP(tblPoteau[[#This Row],[A]],Tableau_basededonnée[],26,0)","v":"Bonne(s)"},{"$f":"VLOOKUP(tblPoteau[[#This Row],[A]],Tableau_basededonnée[],27,0)","v":"Acier / Inox"},{"$f":"VLOOKUP(tblPoteau[[#This Row],[A]],Tableau_basededonnée[],28,0)","v":"Bonne(s)"},{"$f":"VLOOKUP(tblPoteau[[#This Row],[A]],Tableau_basededonnée[],29,0)","v":"Bonne(s) "},{"$f":"VLOOKUP(tblPoteau[[#This Row],[A]],Tableau_basededonnée[],30,0)","v":"Bon"},{"$f":"VLOOKUP(tblPoteau[[#This Row],[A]],Tableau_basededonnée[],31,0)","v":"Oui"},{"$f":"VLOOKUP(tblPoteau[[#This Row],[A]],Tableau_basededonnée[],32,0)","v":"En état"},{"$f":"VLOOKUP(tblPoteau[[#This Row],[A]],Tableau_basededonnée[],33,0)","v":14},{"$f":"VLOOKUP(tblPoteau[[#This Row],[A]],Tableau_basededonnée[],34,0)","v":23},{"$f":"VLOOKUP(tblPoteau[[#This Row],[A]],Tableau_basededonnée[],35,0)","v":55},{"$f":"VLOOKUP(tblPoteau[[#This Row],[A]],Tableau_basededonnée[],36,0)","v":"Non"},{"$f":"VLOOKUP(tblPoteau[[#This Row],[A]],Tableau_basededonnée[],37,0)","v":"SANS"},{"$f":"VLOOKUP(tblPoteau[[#This Row],[A]],Tableau_basededonnée[],38,0)","v":"Moyenne(s)"},{"$f":"VLOOKUP(tblPoteau[[#This Row],[A]],Tableau_basededonnée[],39,0)","v":"Mauvaise(s)"},{"$f":"VLOOKUP(tblPoteau[[#This Row],[A]],Tableau_basededonnée[],40,0)","v":"Oui"},{"$f":"VLOOKUP(tblPoteau[[#This Row],[A]],Tableau_basededonnée[],41,0)","v":"Oui"},{"$f":"VLOOKUP(tblPoteau[[#This Row],[A]],Tableau_basededonnée[],42,0)","v":"Oui"},{"$f":"VLOOKUP(tblPoteau[[#This Row],[A]],Tableau_basededonnée[],43,0)","v":"Oui"},{"$f":"VLOOKUP(tblPoteau[[#This Row],[A]],Tableau_basededonnée[],44,0)","v":"Oui"},{"$f":"VLOOKUP(tblPoteau[[#This Row],[A]],Tableau_basededonnée[],45,0)","v":"Non"},{"$f":"VLOOKUP(tblPoteau[[#This Row],[A]],Tableau_basededonnée[],46,0)","v":"Mauvais "},{"$f":"VLOOKUP(tblPoteau[[#This Row],[A]],Tableau_basededonnée[],47,0)","v":"Non"},{"$f":"VLOOKUP(tblPoteau[[#This Row],[A]],Tableau_basededonnée[],48,0)","v":"RIEN"},{"$f":"VLOOKUP(tblPoteau[[#This Row],[A]],Tableau_basededonnée[],49,0)","v":"OUI"},""]
["Oui",321,"2018-04-25",{"$f":"VLOOKUP(tblPoteau[[#This Row],[A]],Tableau_basededonnée[],5,0)","v":900},{"$f":"VLOOKUP(tblPoteau[[#This Row],[A]],Tableau_basededonnée[],6,0)","v":"ARBRE"},{"$f":"VLOOKUP(tblPoteau[[#This Row],[A]],Tableau_basededonnée[],7,0)","v":"NOIX"},{"$f":"VLOOKUP(tblPoteau[[#This Row],[A]],Tableau_basededonnée[],8,0)","v":"NARCISSE"},{"$f":"VLOOKUP(tblPoteau[[#This Row],[A]],Tableau_basededonnée[],9,0)","v":1},{"$f":"VLOOKUP(tblPoteau[[#This Row],[A]],Tableau_basededonnée[],10,0)","v":100},"Chimique",{"$f":"VLOOKUP(tblPoteau[[#This Row],[A]],Tableau_basededonnée[],12,0)","v":5},{"$f":"VLOOKUP(tblPoteau[[#This Row],[A]],Tableau_basededonnée[],13,0)","v":"POTEAU"},{"$f":"VLOOKUP(tblPoteau[[#This Row],[A]],Tableau_basededonnée[],14,0)","v":"FIL"},{"$f":"VLOOKUP(tblPoteau[[#This Row],[A]],Tableau_basededonnée[],15,0)","v":"Bonne(s) "},{"$f":"VLOOKUP(tblPoteau[[#This Row],[A]],Tableau_basededonnée[],16,0)","v":"Bonne"},{"$f":"VLOOKUP(tblPoteau[[#This Row],[A]],Tableau_basededonnée[],17,0)","v":"Moyenne(s)"},{"$f":"VLOOKUP(tblPoteau[[#This Row],[A]],Tableau_basededonnée[],18,0)","v":"Bon"},{"$f":"VLOOKUP(tblPoteau[[#This Row],[A]],Tableau_basededonnée[],19,0)","v":"Bonne(s) "},{"$f":"VLOOKUP(tblPoteau[[#This Row],[A]],Tableau_basededonnée[],20,0)","v":"Bon"},{"$f":"VLOOKUP(tblPoteau[[#This Row],[A]],Tableau_basededonnée[],21,0)","v":"Bonne(s)"},"Moyen",{"$f":"VLOOKUP(tblPoteau[[#This Row],[A]],Tableau_basededonnée[],23,0)","v":"Bonne(s)"},{"$f":"VLOOKUP(tblPoteau[[#This Row],[A]],Tableau_basededonnée[],24,0)","v":"Bon"},{"$f":"VLOOKUP(tblPoteau[[#This Row],[A]],Tableau_basededonnée[],25,0)","v":"Bonne(s)"},{"$f":"VLOOKUP(tblPoteau[[#This Row],[A]],Tableau_basededonnée[],26,0)","v":"Bonne(s)"},{"$f":"VLOOKUP(tblPoteau[[#This Row],[A]],Tableau_basededonnée[],27,0)","v":"Acier / Pvc"},{"$f":"VLOOKUP(tblPoteau[[#This Row],[A]],Tableau_basededonnée[],28,0)","v":"Moyenne(s)"},{"$f":"VLOOKUP(tblPoteau[[#This Row],[A]],Tableau_basededonnée[],29,0)","v":"Moyenne(s)"},{"$f":"VLOOKUP(tblPoteau[[#This Row],[A]],Tableau_basededonnée[],30,0)","v":"Bon"},{"$f":"VLOOKUP(tblPoteau[[#This Row],[A]],Tableau_basededonnée[],31,0)","v":"Oui"},{"$f":"VLOOKUP(tblPoteau[[#This Row],[A]],Tableau_basededonnée[],32,0)","v":"En état"},{"$f":"VLOOKUP(tblPoteau[[#This Row],[A]],Tableau_basededonnée[],33,0)","v":17},{"$f":"VLOOKUP(tblPoteau[[#This Row],[A]],Tableau_basededonnée[],34,0)","v":26},{"$f":"VLOOKUP(tblPoteau[[#This Row],[A]],Tableau_basededonnée[],35,0)","v":55},{"$f":"VLOOKUP(tblPoteau[[#This Row],[A]],Tableau_basededonnée[],36,0)","v":"Non"},{"$f":"VLOOKUP(tblPoteau[[#This Row],[A]],Tableau_basededonnée[],37,0)","v":"SANS"},{"$f":"VLOOKUP(tblPoteau[[#This Row],[A]],Tableau_basededonnée[],38,0)","v":"Moyenne(s)"},{"$f":"VLOOKUP(tblPoteau[[#This Row],[A]],Tableau_basededonnée[],39,0)","v":"Mauvaise(s)"},{"$f":"VLOOKUP(tblPoteau[[#This Row],[A]],Tableau_basededonnée[],40,0)","v":"Oui"},{"$f":"VLOOKUP(tblPoteau[[#This Row],[A]],Tableau_basededonnée[],41,0)","v":"Oui"},{"$f":"VLOOKUP(tblPoteau[[#This Row],[A]],Tableau_basededonnée[],42,0)","v":"Oui"},{"$f":"VLOOKUP(tblPoteau[[#This Row],[A]],Tableau_basededonnée[],43,0)","v":"Non"},{"$f":"VLOOKUP(tblPoteau[[#This Row],[A]],Tableau_basededonnée[],44,0)","v":"Non"},{"$f":"VLOOKUP(tblPoteau[[#This Row],[A]],Tableau_basededonnée[],45,0)","v":"Non"},{"$f":"VLOOKUP(tblPoteau[[#This Row],[A]],Tableau_basededonnée[],46,0)","v":"Moyen"},{"$f":"VLOOKUP(tblPoteau[[#This Row],[A]],Tableau_basededonnée[],47,0)","v":"Non"},{"$f":"VLOOKUP(tblPoteau[[#This Row],[A]],Tableau_basededonnée[],48,0)","v":"RIEN"},{"$f":"VLOOKUP(tblPoteau[[#This Row],[A]],Tableau_basededonnée[],49,0)","v":"OUI"}]
["Oui",319,"2019-05-17",{"$f":"VLOOKUP(tblPoteau[[#This Row],[A]],Tableau_basededonnée[],5,0)","v":900},{"$f":"VLOOKUP(tblPoteau[[#This Row],[A]],Tableau_basededonnée[],6,0)","v":"ARBRE"},{"$f":"VLOOKUP(tblPoteau[[#This Row],[A]],Tableau_basededonnée[],7,0)","v":"PRUNE"},{"$f":"VLOOKUP(tblPoteau[[#This Row],[A]],Tableau_basededonnée[],8,0)","v":"JONQUILLES"},{"$f":"VLOOKUP(tblPoteau[[#This Row],[A]],Tableau_basededonnée[],9,0)","v":1},{"$f":"VLOOKUP(tblPoteau[[#This Row],[A]],Tableau_basededonnée[],10,0)","v":100},"Classique (javel)",{"$f":"VLOOKUP(tblPoteau[[#This Row],[A]],Tableau_basededonnée[],12,0)","v":8},{"$f":"VLOOKUP(tblPoteau[[#This Row],[A]],Tableau_basededonnée[],13,0)","v":"POTEAU"},{"$f":"VLOOKUP(tblPoteau[[#This Row],[A]],Tableau_basededonnée[],14,0)","v":"FIL"},{"$f":"VLOOKUP(tblPoteau[[#This Row],[A]],Tableau_basededonnée[],15,0)","v":"Moyenne(s)"},{"$f":"VLOOKUP(tblPoteau[[#This Row],[A]],Tableau_basededonnée[],16,0)","v":"Bonne"},{"$f":"VLOOKUP(tblPoteau[[#This Row],[A]],Tableau_basededonnée[],17,0)","v":"Moyenne(s)"},{"$f":"VLOOKUP(tblPoteau[[#This Row],[A]],Tableau_basededonnée[],18,0)","v":"Bon"},{"$f":"VLOOKUP(tblPoteau[[#This Row],[A]],Tableau_basededonnée[],19,0)","v":"Bonne(s) "},{"$f":"VLOOKUP(tblPoteau[[#This Row],[A]],Tableau_basededonnée[],20,0)","v":"Moyen"},{"$f":"VLOOKUP(tblPoteau[[#This Row],[A]],Tableau_basededonnée[],21,0)","v":"Bonne(s)"},"Moyen",{"$f":"VLOOKUP(tblPoteau[[#This Row],[A]],Tableau_basededonnée[],23,0)","v":"Bonne(s) "},{"$f":"VLOOKUP(tblPoteau[[#This Row],[A]],Tableau_basededonnée[],24,0)","v":"Bon"},{"$f":"VLOOKUP(tblPoteau[[#This Row],[A]],Tableau_basededonnée[],25,0)","v":"Bonne(s)"},{"$f":"VLOOKUP(tblPoteau[[#This Row],[A]],Tableau_basededonnée[],26,0)","v":"Bonne(s)"},{"$f":"VLOOKUP(tblPoteau[[#This Row],[A]],Tableau_basededonnée[],27,0)","v":"Acier"},{"$f":"VLOOKUP(tblPoteau[[#This Row],[A]],Tableau_basededonnée[],28,0)","v":"Moyenne(s)"},{"$f":"VLOOKUP(tblPoteau[[#This Row],[A]],Tableau_basededonnée[],29,0)","v":"Moyenne(s)"},{"$f":"VLOOKUP(tblPoteau[[#This Row],[A]],Tableau_basededonnée[],30,0)","v":"Moyen"},{"$f":"VLOOKUP(tblPoteau[[#This Row],[A]],Tableau_basededonnée[],31,0)","v":"Oui"},{"$f":"VLOOKUP(tblPoteau[[#This Row],[A]],Tableau_basededonnée[],32,0)","v":"En état"},{"$f":"VLOOKUP(tblPoteau[[#This Row],[A]],Tableau_basededonnée[],33,0)","v":15},{"$f":"VLOOKUP(tblPoteau[[#This Row],[A]],Tableau_basededonnée[],34,0)","v":24},{"$f":"VLOOKUP(tblPoteau[[#This Row],[A]],Tableau_basededonnée[],35,0)","v":55},{"$f":"VLOOKUP(tblPoteau[[#This Row],[A]],Tableau_basededonnée[],36,0)","v":"Non"},{"$f":"VLOOKUP(tblPoteau[[#This Row],[A]],Tableau_basededonnée[],37,0)","v":"SANS"},{"$f":"VLOOKUP(tblPoteau[[#This Row],[A]],Tableau_basededonnée[],38,0)","v":"Moyenne(s)"},{"$f":"VLOOKUP(tblPoteau[[#This Row],[A]],Tableau_basededonnée[],39,0)","v":"Mauvaise(s)"},{"$f":"VLOOKUP(tblPoteau[[#This Row],[A]],Tableau_basededonnée[],40,0)","v":"Oui"},{"$f":"VLOOKUP(tblPoteau[[#This Row],[A]],Tableau_basededonnée[],41,0)","v":"Oui"},{"$f":"VLOOKUP(tblPoteau[[#This Row],[A]],Tableau_basededonnée[],42,0)","v":"Oui"},{"$f":"VLOOKUP(tblPoteau[[#This Row],[A]],Tableau_basededonnée[],43,0)","v":"Oui"},{"$f":"VLOOKUP(tblPoteau[[#This Row],[A]],Tableau_basededonnée[],44,0)","v":"Non"},{"$f":"VLOOKUP(tblPoteau[[#This Row],[A]],Tableau_basededonnée[],45,0)","v":"Non"},{"$f":"VLOOKUP(tblPoteau[[#This Row],[A]],Tableau_basededonnée[],46,0)","v":"Bon"},{"$f":"VLOOKUP(tblPoteau[[#This Row],[A]],Tableau_basededonnée[],47,0)","v":"Non"},{"$f":"VLOOKUP(tblPoteau[[#This Row],[A]],Tableau_basededonnée[],48,0)","v":"RIEN"},{"$f":"VLOOKUP(tblPoteau[[#This Row],[A]],Tableau_basededonnée[],49,0)","v":"OUI"}]

{"sheet":"Basededonnée","index":1,"n_rows":7,"n_cols":50,"rows_kept":7,"cut":false,"hidden":false,"merged":[]}
["A","B","C","D","E","F","G","H","I","J","K","L","M","N","O","P","Q","R","S","T","U","V","W","X","Y","Z","AA","AB","AC","AD","AE","AF","AG","AH","AI","AJ","AK","AL","AM","AN","AO","AP","AQ","AR","AS","AT","AU","AV","AW","AX"]
[310,{"$f":"_xlfn.AGGREGATE(14,6,(Poteau!$C$3:$C$20/(Poteau!$B$3:$B$20=A2)),1)*1","v":"2018-01-04"},{"$f":"PROPER(TEXT(B2,\"mmmm\"))","v":"Janvier"},{"$f":"YEAR(Tableau_basededonnée[[#This Row],[B]])","v":2018},900,"FLEURS","CERISE","LAVANDE",1,10,"AA",4,"POTEAU","FIL","Bonne(s) ","Bonne","Moyenne(s)","Bon","Moyenne(s)","Bon","Bonne(s)",{"$f":"INDEX(tblPoteau[V],SUMPRODUCT((tblPoteau[A]=Tableau_basededonnée[[#This Row],[A]])*(tblPoteau[B]=MAX(IF(tblPoteau[A]=Tableau_basededonnée[[#This Row],[A]],tblPoteau[B])))*(ROW(tblPoteau[A])-2)))","v":"Moyen"},"Bonne(s) ","Moyen","Bonne(s)","Bonne(s)","Acier / Pvc","Moyenne(s)","Moyenne(s)","Bon","Oui","BOBINE",12,21,47,"Non","SANS","Moyenne(s)","Mauvaise(s)","Oui","Oui","Sans objet","Sans objet","Non","Non","Bon","Oui (NS)","RIEN","OUI",{"$f":"INDEX(tblPoteau[AX],SUMPRODUCT((tblPoteau[A]=Tableau_basededonnée[[#This Row],[A]])*(tblPoteau[B]=MAX(IF(tblPoteau[A]=Tableau_basededonnée[[#This Row],[A]],tblPoteau[B])))*(ROW(tblPoteau[A])-2)))","v":0}]
[311,{"$f":"_xlfn.AGGREGATE(14,6,(Poteau!$C$3:$C$20/(Poteau!$B$3:$B$20=A3)),1)*1","v":"2018-01-18"},"Janvier",{"$f":"YEAR(Tableau_basededonnée[[#This Row],[B]])","v":2018},900,"FLEURS","POIRE","ROSE",1,50,{"$f":"INDEX(tblPoteau[K],SUMPRODUCT((tblPoteau[A]=Tableau_basededonnée[[#This Row],[A]])*(tblPoteau[B]=MAX(IF(tblPoteau[A]=Tableau_basededonnée[[#This Row],[A]],tblPoteau[B])))*(ROW(tblPoteau[A])-2)))","v":"Chimique"},6,"POTEAU","FIL","Bonne(s)","Bonne","Moyenne(s)","Bon","Bonne(s) ","Moyen","Bonne(s)",{"$f":"INDEX(tblPoteau[V],SUMPRODUCT((tblPoteau[A]=Tableau_basededonnée[[#This Row],[A]])*(tblPoteau[B]=MAX(IF(tblPoteau[A]=Tableau_basededonnée[[#This Row],[A]],tblPoteau[B])))*(ROW(tblPoteau[A])-2)))","v":"Moyen"},"Moyenne(s)","Bon","Bonne(s)","Bonne(s)","Pvc","Bonne(s)","Bonne(s) ","Bon","Oui","En état",13,22,"Oui","Non","SANS","Moyenne(s)","Mauvaise(s)","Oui","Oui","Oui","Oui","Non","Non","Bon","Non","RIEN","OUI",{"$f":"INDEX(tblPoteau[AX],SUMPRODUCT((tblPoteau[A]=Tableau_basededonnée[[#This Row],[A]])*(tblPoteau[B]=MAX(IF(tblPoteau[A]=Tableau_basededonnée[[#This Row],[A]],tblPoteau[B])))*(ROW(tblPoteau[A])-2)))","v":0}]
[312,{"$f":"_xlfn.AGGREGATE(14,6,(Poteau!$C$3:$C$20/(Poteau!$B$3:$B$20=A4)),1)*1","v":"2018-03-22"},"Mars",{"$f":"YEAR(Tableau_basededonnée[[#This Row],[B]])","v":2018},900,"FLEURS","POMME","PAQUERETTE",1,150,"BB",7,"POTEAU","FIL","Moyenne(s)","Sans","Moyenne(s)","Moyen","Bonne(s) ","Moyen","Bonne(s)",{"$f":"INDEX(tblPoteau[V],SUMPRODUCT((tblPoteau[A]=Tableau_basededonnée[[#This Row],[A]])*(tblPoteau[B]=MAX(IF(tblPoteau[A]=Tableau_basededonnée[[#This Row],[A]],tblPoteau[B])))*(ROW(tblPoteau[A])-2)))","v":"Moyen"},"Bonne(s)","Moyen","Bonne(s)","Bonne(s)","Acier / Inox","Bonne(s)","Bonne(s) ","Bon","Oui","En état",14,23,55,"Non","SANS","Moyenne(s)","Mauvaise(s)","Oui","Oui","Oui","Oui","Oui","Non","Mauvais ","Non","RIEN","OUI",{"$f":"INDEX(tblPoteau[AX],SUMPRODUCT((tblPoteau[A]=Tableau_basededonnée[[#This Row],[A]])*(tblPoteau[B]=MAX(IF(tblPoteau[A]=Tableau_basededonnée[[#This Row],[A]],tblPoteau[B])))*(ROW(tblPoteau[A])-2)))","v":""}]
[319,{"$f":"_xlfn.AGGREGATE(14,6,(Poteau!$C$3:$C$20/(Poteau!$B$3:$B$20=A5)),1)*1","v":"2019-05-17"},"Mai",{"$f":"YEAR(Tableau_basededonnée[[#This Row],[B]])","v":2019},900,"ARBRE","PRUNE","JONQUILLES",1,100,"AA",8,"POTEAU","FIL","Moyenne(s)","Bonne","Moyenne(s)","Bon","Bonne(s) ","Moyen","Bonne(s)",{"$f":"INDEX(tblPoteau[V],SUMPRODUCT((tblPoteau[A]=Tableau_basededonnée[[#This Row],[A]])*(tblPoteau[B]=MAX(IF(tblPoteau[A]=Tableau_basededonnée[[#This Row],[A]],tblPoteau[B])))*(ROW(tblPoteau[A])-2)))","v":"Moyen"},"Bonne(s) ","Bon","Bonne(s)","Bonne(s)","Acier","Moyenne(s)","Moyenne(s)","Moyen","Oui","En état",15,24,55,"Non","SANS","Moyenne(s)","Mauvaise(s)","Oui","Oui","Oui","Oui","Non","Non","Bon","Non","RIEN","OUI",{"$f":"INDEX(tblPoteau[AX],SUMPRODUCT((tblPoteau[A]=Tableau_basededonnée[[#This Row],[A]])*(tblPoteau[B]=MAX(IF(tblPoteau[A]=Tableau_basededonnée[[#This Row],[A]],tblPoteau[B])))*(ROW(tblPoteau[A])-2)))","v":0}]
[320,{"$f":"_xlfn.AGGREGATE(14,6,(Poteau!$C$3:$C$20/(Poteau!$B$3:$B$20=A6)),1)*1","v":"2016-10-18"},"Octobre",{"$f":"YEAR(Tableau_basededonnée[[#This Row],[B]])","v":2016},900,"ARBRE","PECHE","MUGUET",1,100,"AA",4,"POTEAU","FIL","Moyenne(s)","Sans","Moyenne(s)","Bon","Bonne(s) ","Moyen","Bonne(s)",{"$f":"INDEX(tblPoteau[V],SUMPRODUCT((tblPoteau[A]=Tableau_basededonnée[[#This Row],[A]])*(tblPoteau[B]=MAX(IF(tblPoteau[A]=Tableau_basededonnée[[#This Row],[A]],tblPoteau[B])))*(ROW(tblPoteau[A])-2)))","v":"Moyen"},"Bonne(s)","Bon","Bonne(s)","Bonne(s)","Acier","Moyenne(s)","Moyenne(s)","Bon","Oui","En état",16,25,55,"Non","SANS","Moyenne(s)","Mauvaise(s)","Oui","Oui","Oui","Oui","Non","Non","Bon","Non","RIEN","SANS",{"$f":"INDEX(tblPoteau[AX],SUMPRODUCT((tblPoteau[A]=Tableau_basededonnée[[#This Row],[A]])*(tblPoteau[B]=MAX(IF(tblPoteau[A]=Tableau_basededonnée[[#This Row],[A]],tblPoteau[B])))*(ROW(tblPoteau[A])-2)))","v":""}]
[321,{"$f":"_xlfn.AGGREGATE(14,6,(Poteau!$C$3:$C$20/(Poteau!$B$3:$B$20=A7)),1)*1","v":"2018-04-25"},"Avril",{"$f":"YEAR(Tableau_basededonnée[[#This Row],[B]])","v":2018},900,"ARBRE","NOIX","NARCISSE",1,100,"BB",5,"POTEAU","FIL","Bonne(s) ","Bonne","Moyenne(s)","Bon","Bonne(s) ","Bon","Bonne(s)",{"$f":"INDEX(tblPoteau[V],SUMPRODUCT((tblPoteau[A]=Tableau_basededonnée[[#This Row],[A]])*(tblPoteau[B]=MAX(IF(tblPoteau[A]=Tableau_basededonnée[[#This Row],[A]],tblPoteau[B])))*(ROW(tblPoteau[A])-2)))","v":"Moyen"},"Bonne(s)","Bon","Bonne(s)","Bonne(s)","Acier / Pvc","Moyenne(s)","Moyenne(s)","Bon","Oui","En état",17,26,55,"Non","SANS","Moyenne(s)","Mauvaise(s)","Oui","Oui","Oui","Non","Non","Non","Moyen","Non","RIEN","OUI"]

{"sheet":"Tableau de bord","index":2,"n_rows":8,"n_cols":14,"rows_kept":8,"cut":false,"hidden":false,"merged":[]}
["A","E","F","G","H","I","J",2012,2013,2014,2015,2016,2017,2018]
["                                 Liste du secteur: 900",null,null,null,null,null,null,null,null,null,null,null,{"$f":"IF(MAX(IF((YEAR(tblPoteau[B])='Tableau de bord'!M$1)*(Essai='Tableau de bord'!$A2),tblPoteau[B])),MAX(IF((YEAR(tblPoteau[B])='Tableau de bord'!M$1)*(Essai='Tableau de bord'!$A2),tblPoteau[B])),\"\")","v":""},{"$f":"IF(MAX(IF((YEAR(tblPoteau[B])='Tableau de bord'!N$1)*(Essai='Tableau de bord'!$A2),tblPoteau[B])),MAX(IF((YEAR(tblPoteau[B])='Tableau de bord'!N$1)*(Essai='Tableau de bord'!$A2),tblPoteau[B])),\"\")","v":""}]
[310,"Sect.412","FLEURS","CERISE","LAVANDE",1,10,"2012-03-30","2013-01-11","2014-02-07","2015-01-16","2016-02-05",{"$f":"IF(MAX(IF((YEAR(tblPoteau[B])='Tableau de bord'!M$1)*(Essai='Tableau de bord'!$A3),tblPoteau[B])),MAX(IF((YEAR(tblPoteau[B])='Tableau de bord'!M$1)*(Essai='Tableau de bord'!$A3),tblPoteau[B])),\"\")","v":"2017-01-16"},{"$f":"IF(MAX(IF((YEAR(tblPoteau[B])='Tableau de bord'!N$1)*(Essai='Tableau de bord'!$A3),tblPoteau[B])),MAX(IF((YEAR(tblPoteau[B])='Tableau de bord'!N$1)*(Essai='Tableau de bord'!$A3),tblPoteau[B])),\"\")","v":""}]
[311,"Sect.412","FLEURS","POIRE","ROSE",1,50,"2012-05-04","2013-04-19","2014-04-25","2015-03-20","2016-01-15",{"$f":"IF(MAX(IF((YEAR(tblPoteau[B])='Tableau de bord'!M$1)*(Essai='Tableau de bord'!$A4),tblPoteau[B])),MAX(IF((YEAR(tblPoteau[B])='Tableau de bord'!M$1)*(Essai='Tableau de bord'!$A4),tblPoteau[B])),\"\")","v":"2017-01-11"},{"$f":"IF(MAX(IF((YEAR(tblPoteau[B])='Tableau de bord'!N$1)*(Essai='Tableau de bord'!$A4),tblPoteau[B])),MAX(IF((YEAR(tblPoteau[B])='Tableau de bord'!N$1)*(Essai='Tableau de bord'!$A4),tblPoteau[B])),\"\")","v":"2018-01-18"}]
[312,"Sect.412","FLEURS","POMME","PAQUERETTE",1,150,"2012-12-14",null,"2014-04-04","2015-02-13","2016-02-03",{"$f":"IF(MAX(IF((YEAR(tblPoteau[B])='Tableau de bord'!M$1)*(Essai='Tableau de bord'!$A5),tblPoteau[B])),MAX(IF((YEAR(tblPoteau[B])='Tableau de bord'!M$1)*(Essai='Tableau de bord'!$A5),tblPoteau[B])),\"\")","v":"2017-05-25"},{"$f":"IF(MAX(IF((YEAR(tblPoteau[B])='Tableau de bord'!N$1)*(Essai='Tableau de bord'!$A5),tblPoteau[B])),MAX(IF((YEAR(tblPoteau[B])='Tableau de bord'!N$1)*(Essai='Tableau de bord'!$A5),tblPoteau[B])),\"\")","v":"2018-03-22"}]
[319,"Sect.412","ARBRE","PRUNE","JONQUILLES",1,100,null,null,"2014-04-17","2015-05-28","2016-04-26",{"$f":"IF(MAX(IF((YEAR(tblPoteau[B])='Tableau de bord'!M$1)*(Essai='Tableau de bord'!$A6),tblPoteau[B])),MAX(IF((YEAR(tblPoteau[B])='Tableau de bord'!M$1)*(Essai='Tableau de bord'!$A6),tblPoteau[B])),\"\")","v":""},{"$f":"IF(MAX(IF((YEAR(tblPoteau[B])='Tableau de bord'!N$1)*(Essai='Tableau de bord'!$A6),tblPoteau[B])),MAX(IF((YEAR(tblPoteau[B])='Tableau de bord'!N$1)*(Essai='Tableau de bord'!$A6),tblPoteau[B])),\"\")","v":""}]
[320,"Sect.412","ARBRE","PECHE","MUGUET",1,100,"2012-05-29","2013-04-23","2014-04-08","2015-04-14","2016-04-05",{"$f":"IF(MAX(IF((YEAR(tblPoteau[B])='Tableau de bord'!M$1)*(Essai='Tableau de bord'!$A7),tblPoteau[B])),MAX(IF((YEAR(tblPoteau[B])='Tableau de bord'!M$1)*(Essai='Tableau de bord'!$A7),tblPoteau[B])),\"\")","v":""},{"$f":"IF(MAX(IF((YEAR(tblPoteau[B])='Tableau de bord'!N$1)*(Essai='Tableau de bord'!$A7),tblPoteau[B])),MAX(IF((YEAR(tblPoteau[B])='Tableau de bord'!N$1)*(Essai='Tableau de bord'!$A7),tblPoteau[B])),\"\")","v":""}]
[321,"Sect.412","ARBRE","NOIX","NARCISSE",1,100,"2012-03-20","2013-03-12","2014-04-15",null,"2016-01-12",{"$f":"IF(MAX(IF((YEAR(tblPoteau[B])='Tableau de bord'!M$1)*(Essai='Tableau de bord'!$A8),tblPoteau[B])),MAX(IF((YEAR(tblPoteau[B])='Tableau de bord'!M$1)*(Essai='Tableau de bord'!$A8),tblPoteau[B])),\"\")","v":"2017-04-20"},{"$f":"IF(MAX(IF((YEAR(tblPoteau[B])='Tableau de bord'!N$1)*(Essai='Tableau de bord'!$A8),tblPoteau[B])),MAX(IF((YEAR(tblPoteau[B])='Tableau de bord'!N$1)*(Essai='Tableau de bord'!$A8),tblPoteau[B])),\"\")","v":"2018-04-25"}]